Workbook

Sheet README
A1: Susitna Watana 2013 Recreational Mail Survey- Combined Pivots (Round 2)
A2: File Overview
A3: This file-overview worksheet describes each of the subsequent worksheets continued in this Excel spreadsheet. Table 1 lists each of the worksheets in this spreadsheet and provides a brief description.
B5: Table 1: Worksheet Descriptions
B6: Worksheet Name | C6: Worksheet Description
B7: Tables | C7: Tables created for final report
B8: Activity by Month | C8: Figure showing survey activity by month
B9: Activity by Age | C9: Figure showing survey activity by age
B10: Activity by Income | C10: Figure showing survey activity by income
B11: Combined Site List | C11: Figure showing survey activity by income
B12: Study Area Site Variable | C12: Figure showing survey activity by income

Sheet Tables
B3: Recreation Activity | C3: Location Type
B4: Boating | C4: Activity Location
B5: Fishing | C5: ADF&G SWHS Location
B6: Hunting | C6: GMU
B7: Snow Machining | C7: Activity Location
B13: Recreational Activities
B14: Riding the Alaska Railroad | C14: Hunting
B15: Bird watching | C15: Hiking/backpacking
B16: Bicycling | C16: Motorized boating
B17: Camping-remote tent/cabin | C17: Rafting/canoeing/kayaking/pack raft (non-motorized)
B18: Camping- RV/campground/roadside | C18: Riding ATVs
B19: Collecting berries/mushrooms | C19: Skiing
B20: Dog sledding | C20: Snow Machining
B21: Fishing for salmon | C21: Snowshoeing
B22: Fishing for other species | C22: Walking/running
B23: Flightseeing | C23: Wildlife viewing
B27: SUMMARY TABLE | I27: % Respondents
C28: Snow Machining | D28: Fishing | E28: Hunting | F28: Boating | H28: Survey Total | I28: SM | J28: F | K28: H | L28: B | N28: Age | O28: Number of Respondents | P28: Completed Surveys | Q28: Activity Days | R28: Activity Days | S28: weight | T28: weighted activity days
B29: Number of Respondents that Participated | C29: =SUM(C30:C31) -> 448 | D29: =SUM(D30:D31) -> 1766 | E29: 829 | F29: 1253 | H29: =SUM(H30:H31) -> 3986 | I29: =C29/$H$29 -> 0.1123933768 | J29: =D29/$H$29 -> 0.4430506774 | K29: 0.2079779227 | L29: 0.3143502258 | N29: 19 & Under | O29: 10 | P29: =(O29/$O$39)*100 -> 0.5854800937 | Q29: =SUM(D139:G139) -> 34 | R29: =(Q29/SUM($Q$29:$Q$37))*100 -> 0.09777419911 | S29: =(O29/$O$39)/(Q29/$Q$39) -> 5.988083758 | T29: =Q29*S29 -> 203.5948478 | U29: =T29/SUM($T$29:$T$37) -> 0.00624609619
B30: Round 1 | C30: =10+8+216 -> 234 | D30: =13+14+709 -> 736 | E30: =5+6+289 -> 300 | F30: =8+8+456 -> 472 | H30: 1708 | I30: =C30/$H$30 -> 0.1370023419 | J30: =D30/$H$30 -> 0.4309133489 | K30: 0.1756440281 | L30: 0.2763466042 | N30: 20-29 years | O30: 147 | P30: =(O30/$O$39)*100 -> 8.606557377 | Q30: 2155 | R30: =(Q30/SUM($Q$29:$Q$37))*100 -> 6.197158797 | S30: =(O30/$O$39)/(Q30/$Q$39) -> 1.388790841 | T30: =Q30*S30 -> 2992.844262 | U30: =T30/SUM($T$29:$T$37) -> 0.09181761399
B31: Round 2 | C31: 214 | D31: 1030 | E31: 529 | F31: 781 | H31: 2278 | I31: =C31/$H$31 -> 0.09394205443 | J31: =D31/$H$31 -> 0.4521510097 | K31: 0.2322212467 | L31: 0.3428446005 | N31: 30-39 years | O31: 248 | P31: 14.51990632 | Q31: 5281 | R31: 15.18663369 | S31: 0.9560977513 | T31: 5049.152225 | U31: 0.1549031855
B32: Participated and live in study area | C32: =SUM(C33:C34) -> 31 | D32: =SUM(D33:D34) -> 62 | E32: =SUM(E33:E34) -> 44 | F32: =SUM(F33:F34) -> 44 | G32: =C32/C29 -> 0.06919642857 | N32: 40-49 years | O32: 242 | P32: 14.16861827 | Q32: 7164 | R32: 20.6015989 | S32: 0.6877436231 | T32: 4926.995316 | U32: 0.1511555278
B33: Round 1 | C33: 4 | D33: 7 | E33: 4 | F33: 4 | N33: 50-59 years | O33: 379 | P33: 22.18969555 | Q33: 8755 | R33: 25.17685627 | S33: 0.8813529104 | T33: 7716.244731 | U33: 0.2367270456
B34: Round 2 | C34: 27 | D34: 55 | E34: 40 | F34: 40 | N34: 60-69 years | O34: 370 | P34: 21.66276347 | Q34: 8230 | R34: 23.66710761 | S34: 0.9153109803 | T34: 7533.009368 | U34: 0.231105559
B35: Activity Days- All Respondents | C35: =SUM(C36:C37) -> 3797 | D35: =SUM(D36:D37) -> 17763 | E35: =SUM(E36:E37) -> 7250 | F35: =SUM(F36:F37) -> 9621 | N35: 70-79 years | O35: 152 | P35: 8.899297424 | Q35: 2732 | R35: 7.85644447 | S35: 1.132738538 | T35: 3094.641686 | U35: 0.09494066209
B36: Round 1 | C36: 2190 | D36: 7029 | E36: 2303 | F36: 3541 | N36: 80-89 years | O36: 43 | P36: 2.517564403 | Q36: 253 | R36: 0.7275550699 | S36: 3.460307689 | T36: 875.4578454 | U36: 0.02685821362
B37: Round 2 | C37: 1607 | D37: 10734 | E37: 4947 | F37: 6080 | N37: 90+ years | O37: 10 | P37: 0.5854800937 | Q37: 170 | R37: 0.4888709956 | S37: 1.197616752 | T37: 203.5948478 | U37: 0.00624609619
B38: Activity Days- Lives in Study Area Only | C38: =SUM(C39:C40) -> 397 | D38: =SUM(D39:D40) -> 943 | E38: =SUM(E39:E40) -> 621 | F38: =SUM(F39:F40) -> 773 | G38: =C38/C35 -> 0.1045562286
B39: Round 1 | C39: 59 | D39: 58 | E39: 45 | F39: 34 | N39: Grand Total | O39: 1708 | Q39: =SUM(Q29:Q37) -> 34774
B40: Round 2 | C40: 338 | D40: 885 | E40: 576 | F40: 739
B41: Activity Days in Study Area | C41: =SUM(C42:C43) -> 36 | D41: =SUM(D42:D43) -> 617 | E41: =SUM(E42:E43) -> 1698 | F41: =SUM(F42:F43) -> 160 | G41: =C41/C35 -> 0.009481169344 | H41: =C41/SUM(C41:F41) -> 0.01433691756
B42: Round 1 | C42: 36 | D42: 104 | E42: 717 | F42: 74
B43: Round 2 | C43: 0 | D43: 513 | E43: 981 | F43: 86
B44: Unique Recreation Sites | C44: 117 | D44: 383 | E44: 285 | F44: 458
B45: Recreation Sites within Study Area | C45: 1 | D45: 7 | E45: 44 | F45: 9
B51: Source: | C51: P:\266 DOWL Engineers\11326601.00 Susitna-Watana Hydro FY2013\11326601.03 Recreation Utility Model\McDowell Mail Survey\McDowell 0514 Raw Survey Data_MH Pivot.xlsm
C53: Round 2: 5/14
E54: Activity Days | I54: % of Total Days
C55: Month | D55: # | E55: SM | F55: SF | G55: RB | H55: HT | I55: SM | J55: SF | K55: RB | L55: HT
C56: January | D56: 1 | E56: 0 | F56: 0 | G56: 0 | H56: 0 | I56: 0 | J56: 0 | K56: 0 | L56: 0
C57: February | D57: 2 | E57: 0 | F57: 0 | G57: 0 | H57: 0 | I57: 0 | J57: 0 | K57: 0 | L57: 0
C58: March | D58: 3 | E58: 0 | F58: 0 | G58: 0 | H58: 0 | I58: 0 | J58: 0 | K58: 0 | L58: 0
C59: April | D59: 4 | E59: 0 | F59: 0 | G59: 0 | H59: 0 | I59: 0 | J59: 0 | K59: 0 | L59: 0
C60: May | D60: 5 | E60: 231 | F60: 572 | G60: 301 | H60: 208 | I60: 0.8783269962 | J60: 0.07204030227 | K60: 0.07419275327 | L60: 0.05789034233
C61: June | D61: 6 | E61: 2 | F61: 1654 | G61: 959 | H61: 162 | I61: 0.007604562738 | J61: 0.2083123426 | K61: 0.2363815627 | L61: 0.04508767047
C62: July | D62: 7 | E62: 0 | F62: 2955 | G62: 1266 | H62: 134 | I62: 0 | J62: 0.3721662469 | K62: 0.3120532413 | L62: 0.03729473977
C63: August | D63: 8 | E63: 5 | F63: 1799 | G63: 853 | H63: 760 | I63: 0.01901140684 | J63: 0.2265743073 | K63: 0.2102538822 | L63: 0.2115224047
C64: September | D64: 9 | E64: 6 | F64: 752 | G64: 570 | H64: 1949 | I64: 0.02281368821 | J64: 0.09471032746 | K64: 0.1404979049 | L64: 0.5424436404
C65: October | D65: 10 | E65: 19 | F65: 208 | G65: 108 | H65: 380 | I65: 0.07224334601 | J65: 0.02619647355 | K65: 0.02662065566 | L65: 0.1057612023
C66: November | D66: 11 | E66: 0 | F66: 0 | G66: 0 | H66: 0 | I66: 0 | J66: 0 | K66: 0 | L66: 0
C67: December | D67: 12 | E67: 0 | F67: 0 | G67: 0 | H67: 0 | I67: 0 | J67: 0 | K67: 0 | L67: 0
C68: Blank | D68: 0 | E68: 0 | F68: 0 | G68: 0 | H68: 0 | I68: 0 | J68: 0 | K68: 0 | L68: 0
B70: Source: | C70: P:\266 DOWL Engineers\11326601.00 Susitna-Watana Hydro FY2013\11326601.03 Recreation Utility Model\McDowell Mail Survey\McDowell 0813 Raw Survey Data_MH Pivot.xlsm
C72: Round 1: 8/13
E73: Activity Days | I73: % of Total Days
C74: Month | D74: # | E74: SM | F74: SF | G74: RB | H74: HT | I74: SM | J74: SF | K74: RB | L74: HT
C75: January | D75: 1 | E75: 408 | F75: 0 | G75: 0 | H75: 0 | I75: 0.2633957392 | J75: 0 | K75: 0 | L75: 0
C76: February | D76: 2 | E76: 337 | F76: 0 | G76: 0 | H76: 0 | I76: 0.2175597159 | J76: 0 | K76: 0 | L76: 0
C77: March | D77: 3 | E77: 484 | F77: 0 | G77: 0 | H77: 0 | I77: 0.3124596514 | J77: 0 | K77: 0 | L77: 0
C78: April | D78: 4 | E78: 320 | F78: 0 | G78: 0 | H78: 0 | I78: 0.2065848935 | J78: 0 | K78: 0 | L78: 0
C79: May | D79: 5 | E79: 0 | F79: 381 | G79: 252 | H79: 0 | I79: 0 | J79: 0.06895927602 | K79: 0.09224011713 | L79: 0
C80: June | D80: 6 | E80: 0 | F80: 1372 | G80: 683 | H80: 37 | I80: 0 | J80: 0.2483257919 | K80: 0.25 | L80: 0.01987110634
C81: July | D81: 7 | E81: 0 | F81: 2043 | G81: 931 | H81: 22 | I81: 0 | J81: 0.3697737557 | K81: 0.3407759883 | L81: 0.01181525242
C82: August | D82: 8 | E82: 0 | F82: 1244 | G82: 570 | H82: 417 | I82: 0 | J82: 0.225158371 | K82: 0.2086383602 | L82: 0.223952739
C83: September | D83: 9 | E83: 0 | F83: 370 | G83: 254 | H83: 1110 | I83: 0 | J83: 0.06696832579 | K83: 0.09297218155 | L83: 0.5961331901
C84: October | D84: 10 | E84: 0 | F84: 85 | G84: 33 | H84: 170 | I84: 0 | J84: 0.01538461538 | K84: 0.01207906296 | L84: 0.09129967777
C85: November | D85: 11 | E85: 0 | F85: 0 | G85: 0 | H85: 106 | I85: 0 | J85: 0 | K85: 0 | L85: 0.05692803437
C86: December | D86: 12 | E86: 0 | F86: 0 | G86: 0 | H86: 0 | I86: 0 | J86: 0 | K86: 0 | L86: 0
C87: Blank | D87: 0 | E87: 0 | F87: 30 | G87: 9 | H87: 0 | I87: 0 | J87: 0.005429864253 | K87: 0.003294289898 | L87: 0
C90: Combined
E91: Activity Days | I91: % of Total Days
C92: Month | D92: # | E92: Snowmachining | F92: Fishing | G92: Boating | H92: Hunting | I92: SM | J92: SF | K92: RB | L92: HT
C93: January | D93: 1 | E93: =E56+E75 -> 408 | F93: =F56+F75 -> 0 | G93: 0 | H93: 0 | I93: =E93/SUM(E$93:E$105) -> 0.2251655629 | J93: =F93/SUM(F$93:F$105) -> 0 | K93: 0 | L93: 0
C94: February | D94: 2 | E94: =E57+E76 -> 337 | F94: 0 | G94: 0 | H94: 0 | I94: =E94/SUM(E$93:E$105) -> 0.18598234 | J94: 0 | K94: 0 | L94: 0
C95: March | D95: 3 | E95: 484 | F95: 0 | G95: 0 | H95: 0 | I95: 0.2671081678 | J95: 0 | K95: 0 | L95: 0
C96: April | D96: 4 | E96: 320 | F96: 0 | G96: 0 | H96: 0 | I96: 0.1766004415 | J96: 0 | K96: 0 | L96: 0
C97: May | D97: 5 | E97: 231 | F97: 953 | G97: 553 | H97: 208 | I97: 0.1274834437 | J97: 0.07077608615 | K97: 0.08145529533 | L97: 0.03813015582
C98: June | D98: 6 | E98: 2 | F98: 3026 | G98: 1642 | H98: 199 | I98: 0.001103752759 | J98: 0.2247307835 | K98: 0.2418618353 | L98: 0.03648029331
C99: July | D99: 7 | E99: 0 | F99: 4998 | G99: 2197 | H99: 156 | I99: 0 | J99: 0.3711845525 | K99: 0.3236117248 | L99: 0.02859761687
C100: August | D100: 8 | E100: 5 | F100: 3043 | G100: 1423 | H100: 1177 | I100: 0.002759381898 | J100: 0.225993316 | K100: 0.2096037708 | L100: 0.2157653529
C101: September | D101: 9 | E101: 6 | F101: 1122 | G101: 824 | H101: 3059 | I101: 0.003311258278 | J101: 0.08332714445 | K101: 0.121372809 | L101: 0.5607699358
C102: October | D102: 10 | E102: 19 | F102: 293 | G102: 141 | H102: 550 | I102: 0.01048565121 | J102: 0.02176011883 | K102: 0.02076889085 | L102: 0.1008249313
C103: November | D103: 11 | E103: 0 | F103: 0 | G103: 0 | H103: 106 | I103: 0 | J103: 0 | K103: 0 | L103: 0.01943171402
C104: December | D104: 12 | E104: 0 | F104: 0 | G104: 0 | H104: 0 | I104: 0 | J104: 0 | K104: 0 | L104: 0
C105: Blank | D105: 0 | E105: 0 | F105: 30 | G105: 9 | H105: 0 | I105: 0 | J105: 0.002227998515 | K105: 0.001325673884 | L105: 0
C108: ROUND #1: 8/13
C109: Age | D109: Activity Days- All Respondents | H109: Activity Days- Lives in Study Area | L109: Activity Days in Study Area (Policy Site)
D110: Snowmachining | E110: Fishing | F110: Boating | G110: Hunting | H110: Snowmachining | I110: Fishing | J110: Boating | K110: Hunting | L110: Snowmachining | M110: Fishing | N110: Boating | O110: Hunting
C111: 19 & under | D111: 8 | E111: 17 | F111: 2 | G111: 1 | M111: 1
C112: 20-29 years | D112: 125 | E112: 495 | F112: 265 | G112: 62 | L112: 4 | M112: 13 | N112: 4 | O112: 74
C113: 30-39 years | D113: 392 | E113: 1037 | F113: 468 | G113: 426 | H113: 29 | I113: 18 | J113: 20 | K113: 6 | L113: 16 | M113: 23 | N113: 3 | O113: 88
C114: 40-49 years | D114: 670 | E114: 1278 | F114: 474 | G114: 409 | H114: 30 | I114: 29 | J114: 11 | K114: 39 | M114: 70 | N114: 4 | O114: 263 | S114: Snowmachining Activity Days | X114: Fishing Activity Days | AC114: Boating Activity Days | AH114: Hunting Activity Days
C115: 50-59 years | D115: 414 | E115: 1587 | F115: 759 | G115: 567 | L115: 15 | M115: 32 | N115: 39 | O115: 138 | R115: Age | S115: Total Responses | T115: Lives in Study Area | U115: Activity at a Policy Site | V115: Activity Outside Study Area | W115: Age | X115: Total Responses | Y115: Lives in Study Area | Z115: Activity at a Policy Site | AA115: Activity Outside Study Area | AB115: Age | AC115: Total Responses | AD115: Lives in Study Area | AE115: Activity at a Policy Site | AF115: Activity Outside Study Area | AG115: Age | AH115: Total Responses | AI115: Lives in Study Area | AJ115: Activity at a Policy Site | AK115: Activity Outside Study Area
C116: 60-69 years | D116: 257 | E116: 1171 | F116: 808 | G116: 379 | I116: 6 | J116: 3 | L116: 1 | M116: 63 | N116: 23 | O116: 88 | R116: 19 & under | S116: =D139 -> 8 | T116: =H139 -> 0 | U116: =L139 -> 0 | V116: =S116-U116 -> 8 | W116: 19 & under | X116: =E139 -> 23 | Y116: =I139 -> 0 | Z116: =M139 -> 1 | AA116: =X116-Z116 -> 22 | AB116: 19 & under | AC116: =F139 -> 2 | AD116: =J139 -> 0 | AE116: =N139 -> 0 | AF116: =AC116-AE116 -> 2 | AG116: 19 & under | AH116: =G139 -> 1 | AI116: =K139 -> 0 | AJ116: =O139 -> 0 | AK116: =AH116-AJ116 -> 1 | AM116: =AJ116/AH116 -> 0
C117: 70-79 years | D117: 180 | E117: 535 | F117: 232 | G117: 204 | M117: 9 | N117: 1 | O117: 74 | R117: 20-29 years | S117: 148 | T117: 15 | U117: =L140 -> 4 | V117: =S117-U117 -> 144 | W117: 20-29 years | X117: 1092 | Y117: 148 | Z117: =M140 -> 96 | AA117: =X117-Z117 -> 996 | AB117: 20-29 years | AC117: 593 | AD117: 0 | AE117: =N140 -> 9 | AF117: =AC117-AE117 -> 584 | AG117: 20-29 years | AH117: 322 | AI117: 21 | AJ117: =O140 -> 115 | AK117: =AH117-AJ117 -> 207 | AM117: =AJ117/AH117 -> 0.3571428571
C118: 80-89 years | D118: 20 | E118: 36 | F118: 5 | G118: 20 | M118: 23 | Q118: =U118/SUM($U$116:$U$124) -> 0.4444444444 | R118: 30-39 years | S118: 535 | T118: 32 | U118: 16 | V118: 519 | W118: 30-39 years | X118: 2518 | Y118: 144 | Z118: 148 | AA118: 2370 | AB118: 30-39 years | AC118: 1217 | AD118: 49 | AE118: 25 | AF118: 1192 | AG118: 30-39 years | AH118: 1011 | AI118: 18 | AJ118: 202 | AK118: 809 | AM118: 0.1998021761
C119: 90+ years | E119: 3 | F119: 120 | R119: 40-49 years | S119: 958 | T119: 105 | U119: 0 | V119: 958 | W119: 40-49 years | X119: 3199 | Y119: 129 | Z119: 126 | AA119: 3073 | AB119: 40-49 years | AC119: 1604 | AD119: 181 | AE119: 5 | AF119: 1599 | AG119: 40-49 years | AH119: 1403 | AI119: 261 | AJ119: 380 | AK119: 1023 | AM119: 0.2708481825
Q120: =U120/SUM(U116:U124) -> 0.4166666667 | R120: 50-59 years | S120: 738 | T120: 62 | U120: 15 | V120: 723 | W120: 50-59 years | X120: 4014 | Y120: 112 | Z120: 117 | AA120: 3897 | AB120: 50-59 years | AC120: 2199 | AD120: 43 | AE120: 68 | AF120: 2131 | AG120: 50-59 years | AH120: 1804 | AI120: 42 | AJ120: 392 | AK120: 1412 | AM120: 0.2172949002
R121: 60-69 years | S121: 839 | T121: 62 | U121: 1 | V121: 838 | W121: 60-69 years | X121: 3544 | Y121: 199 | Z121: 128 | AA121: 3416 | AB121: 60-69 years | AC121: 2285 | AD121: 239 | AE121: 40 | AF121: 2245 | AG121: 60-69 years | AH121: 1562 | AI121: 118 | AJ121: 419 | AK121: 1143 | AM121: 0.2682458387
C122: ROUND #2: 5/14 | R122: 70-79 years | S122: 212 | T122: 0 | U122: 0 | V122: 212 | W122: 70-79 years | X122: 1383 | Y122: 122 | Z122: 71 | AA122: 1312 | AB122: 70-79 years | AC122: 588 | AD122: 75 | AE122: 1 | AF122: 587 | AG122: 70-79 years | AH122: 549 | AI122: 68 | AJ122: 170 | AK122: 379 | AM122: 0.3096539162
C123: Age | D123: Activity Days- All Respondents | H123: Activity Days- Lives in Study Area | L123: Activity Days in Study Area (Policy Site) | R123: 80-89 years | S123: 33 | T123: 7 | U123: 0 | V123: 33 | W123: 80-89 years | X123: 123 | Y123: 21 | Z123: 23 | AA123: 100 | AB123: 80-89 years | AC123: 43 | AD123: 5 | AE123: 0 | AF123: 43 | AG123: 80-89 years | AH123: 54 | AI123: 21 | AJ123: 10 | AK123: 44 | AM123: 0.1851851852
D124: Snowmachining | E124: Fishing | F124: Boating | G124: Hunting | H124: Snowmachining | I124: Fishing | J124: Boating | K124: Hunting | L124: Snowmachining | M124: Fishing | N124: Boating | O124: Hunting | R124: 90+ years | S124: 10 | T124: 0 | U124: 0 | V124: 10 | W124: 90+ years | X124: 20 | Y124: 0 | Z124: 0 | AA124: 20 | AB124: 90+ years | AC124: 130 | AD124: 0 | AE124: 0 | AF124: 130 | AG124: 90+ years | AH124: 10 | AI124: 0 | AJ124: 10 | AK124: 0 | AM124: 1
C125: 19 & under | E125: 6
C126: 20-29 years | D126: 23 | E126: 597 | F126: 328 | G126: 260 | H126: 15 | I126: 148 | K126: 21 | M126: 83 | N126: 5 | O126: 41
C127: 30-39 years | D127: 143 | E127: 1481 | F127: 749 | G127: 585 | H127: 3 | I127: 126 | J127: 29 | K127: 12 | M127: 125 | N127: 22 | O127: 114 | R127: Age | S127: Total Responses | T127: Lives in Study Area | U127: Activity in Study Area | W127: Age | X127: Total Responses | Y127: Lives in Study Area | Z127: Activity in Study Area | AB127: Age | AC127: Total Responses | AD127: Lives in Study Area | AE127: Activity at a Policy Site | AG127: Age | AH127: Total Responses | AI127: Lives in Study Area | AJ127: Activity in Study Area
C128: 40-49 years | D128: 288 | E128: 1921 | F128: 1130 | G128: 994 | H128: 75 | I128: 100 | J128: 170 | K128: 222 | M128: 56 | N128: 1 | O128: 117 | R128: 19 & under | S128: =S116/SUM(S$116:S$124)*100 -> 0.2298190175 | T128: =T116/SUM(T$116:T$124)*100 -> 0 | U128: 0 | W128: 19 & under | X128: =X116/SUM(X$116:X$124)*100 -> 0.1445086705 | Y128: =Y116/SUM(Y$116:Y$124)*100 -> 0 | Z128: 0.1408450704 | AB128: 19 & under | AC128: =AC116/SUM(AC$116:AC$124)*100 -> 0.02309202171 | AD128: =AD116/SUM(AD$116:AD$124)*100 -> 0 | AE128: 0 | AG128: 19 & under | AH128: =AH116/SUM(AH$116:AH$124)*100 -> 0.01488981537 | AI128: =AI116/SUM(AI$116:AI$124)*100 -> 0 | AJ128: 0
C129: 50-59 years | D129: 324 | E129: 2427 | F129: 1440 | G129: 1237 | H129: 62 | I129: 112 | J129: 43 | K129: 42 | M129: 85 | N129: 29 | O129: 254 | R129: 20-29 years | S129: =S117/SUM(S$116:S$124)*100 -> 4.251651824 | T129: 5.300353357 | U129: 11.11111111 | W129: 20-29 years | X129: =X117/SUM(X$116:X$124)*100 -> 6.861020357 | Y129: 16.91428571 | Z129: 13.52112676 | AB129: 20-29 years | AC129: =AC117/SUM(AC$116:AC$124)*100 -> 6.846784436 | AD129: 0 | AE129: 6.081081081 | AG129: 20-29 years | AH129: =AH117/SUM(AH$116:AH$124)*100 -> 4.794520548 | AI129: 3.825136612 | AJ129: 6.772673734
C130: 60-69 years | D130: 582 | E130: 2373 | F130: 1477 | G130: 1183 | H130: 62 | I130: 193 | J130: 236 | K130: 118 | M130: 65 | N130: 17 | O130: 331 | R130: 30-39 years | S130: 15.3691468 | T130: 11.30742049 | U130: 44.44444444 | W130: 30-39 years | X130: 15.82055793 | Y130: 16.45714286 | Z130: 20.84507042 | AB130: 30-39 years | AC130: 14.05149521 | AD130: 8.277027027 | AE130: 16.89189189 | AG130: 30-39 years | AH130: 15.05360334 | AI130: 3.278688525 | AJ130: 11.89634865
C131: 70-79 years | D131: 32 | E131: 848 | F131: 356 | G131: 345 | I131: 122 | J131: 75 | K131: 68 | M131: 62 | O131: 96 | R131: 40-49 years | S131: 27.52082735 | T131: 37.1024735 | U131: 0 | W131: 40-49 years | X131: 20.09927117 | Y131: 14.74285714 | Z131: 17.74647887 | AB131: 40-49 years | AC131: 18.51980141 | AD131: 30.57432432 | AE131: 3.378378378 | AG131: 40-49 years | AH131: 20.89041096 | AI131: 47.54098361 | AJ131: 22.37926973
C132: 80-89 years | D132: 13 | E132: 87 | F132: 38 | G132: 34 | H132: 7 | I132: 21 | J132: 5 | K132: 21 | O132: 10 | R132: 50-59 years | S132: 21.20080437 | T132: 21.90812721 | U132: 41.66666667 | W132: 50-59 years | X132: 25.2199045 | Y132: 12.8 | Z132: 16.47887324 | AB132: 50-59 years | AC132: 25.38967787 | AD132: 7.263513514 | AE132: 45.94594595 | AG132: 50-59 years | AH132: 26.86122692 | AI132: 7.650273224 | AJ132: 23.08598351
C133: 90+ years | D133: 10 | E133: 17 | F133: 10 | G133: 10 | O133: 10 | R133: 60-69 years | S133: 24.10226946 | T133: 21.90812721 | U133: 2.777777778 | W133: 60-69 years | X133: 22.26690123 | Y133: 22.74285714 | Z133: 18.02816901 | AB133: 60-69 years | AC133: 26.3826348 | AD133: 40.37162162 | AE133: 27.02702703 | AG133: 60-69 years | AH133: 23.2578916 | AI133: 21.49362477 | AJ133: 24.67608952
R134: 70-79 years | S134: 6.090203964 | T134: 0 | U134: 0 | W134: 70-79 years | X134: 8.689369188 | Y134: 13.94285714 | Z134: 10 | AB134: 70-79 years | AC134: 6.789054382 | AD134: 12.66891892 | AE134: 0.6756756757 | AG134: 70-79 years | AH134: 8.174508636 | AI134: 12.38615665 | AJ134: 10.01177856
R135: 80-89 years | S135: 0.9480034473 | T135: 2.473498233 | U135: 0 | W135: 80-89 years | X135: 0.772807238 | Y135: 2.4 | Z135: 3.23943662 | AB135: 80-89 years | AC135: 0.4964784667 | AD135: 0.8445945946 | AE135: 0 | AG135: 80-89 years | AH135: 0.8040500298 | AI135: 3.825136612 | AJ135: 0.5889281508
C136: COMBINED | R136: 90+ years | S136: 0.2872737719 | T136: 0 | U136: 0 | W136: 90+ years | X136: 0.1256597135 | Y136: 0 | Z136: 0 | AB136: 90+ years | AC136: 1.500981411 | AD136: 0 | AE136: 0 | AG136: 90+ years | AH136: 0.1488981537 | AI136: 0 | AJ136: 0.5889281508
D137: Activity Days- All Respondents | H137: Activity Days- Lives in Study Area | L137: Activity Days in Study Area (Policy Site)
C138: Age | D138: Snowmachining | E138: Fishing | F138: Boating | G138: Hunting | H138: Snowmachining | I138: Fishing | J138: Boating | K138: Hunting | L138: Snowmachining | M138: Fishing | N138: Boating | O138: Hunting
C139: 19 & under | D139: =D111+D125 -> 8 | E139: =E111+E125 -> 23 | F139: 2 | G139: 1 | H139: =H125+H111 -> 0 | I139: =I125+I111 -> 0 | J139: 0 | K139: 0 | L139: =L111+L125 -> 0 | M139: =M111+M125 -> 1 | N139: 0 | O139: 0
C140: 20-29 years | D140: =D112+D126 -> 148 | E140: 1092 | F140: 593 | G140: 322 | H140: =H126+H112 -> 15 | I140: 148 | J140: 0 | K140: 21 | L140: =L112+L126 -> 4 | M140: 96 | N140: 9 | O140: 115
C141: 30-39 years | D141: =D113+D127 -> 535 | E141: 2518 | F141: 1217 | G141: 1011 | H141: 32 | I141: 144 | J141: 49 | K141: 18 | L141: =L113+L127 -> 16 | M141: 148 | N141: 25 | O141: 202
C142: 40-49 years | D142: =D114+D128 -> 958 | E142: 3199 | F142: 1604 | G142: 1403 | H142: 105 | I142: 129 | J142: 181 | K142: 261 | L142: =L114+L128 -> 0 | M142: 126 | N142: 5 | O142: 380
C143: 50-59 years | D143: =D115+D129 -> 738 | E143: 4014 | F143: 2199 | G143: 1804 | H143: 62 | I143: 112 | J143: 43 | K143: 42 | L143: =L115+L129 -> 15 | M143: 117 | N143: 68 | O143: 392
C144: 60-69 years | D144: =D116+D130 -> 839 | E144: 3544 | F144: 2285 | G144: 1562 | H144: 62 | I144: 199 | J144: 239 | K144: 118 | L144: =L116+L130 -> 1 | M144: 128 | N144: 40 | O144: 419
C145: 70-79 years | D145: =D117+D131 -> 212 | E145: 1383 | F145: 588 | G145: 549 | H145: 0 | I145: 122 | J145: 75 | K145: 68 | L145: =L117+L131 -> 0 | M145: 71 | N145: 1 | O145: 170
C146: 80-89 years | D146: =D118+D132 -> 33 | E146: 123 | F146: 43 | G146: 54 | H146: 7 | I146: 21 | J146: 5 | K146: 21 | L146: =L118+L132 -> 0 | M146: 23 | N146: 0 | O146: 10
C147: 90+ years | D147: =D119+D133 -> 10 | E147: 20 | F147: 130 | G147: 10 | H147: 0 | I147: 0 | J147: 0 | K147: 0 | L147: =L119+L133 -> 0 | M147: 0 | N147: 0 | O147: 10
C152: ROUND #1: 8/13
D153: Activity Days- All Respondents | H153: Activity Days- Lives in Study Area | L153: Activity Days in Study Area (Policy Site)
C154: Income | D154: Snowmachining | E154: Fishing | F154: Boating | G154: Hunting | H154: Snowmachining | I154: Fishing | J154: Boating | K154: Hunting | L154: Snowmachining | M154: Fishing | N154: Boating | O154: Hunting
C155: Less than $20,000 | D155: 25 | E155: 371 | F155: 64 | G155: 56 | I155: 2 | M155: 20 | N155: 2 | O155: 18
C156: $20,001-$35,000 | D156: 152 | E156: 628 | F156: 333 | G156: 124 | H156: 8 | I156: 17 | J156: 6 | K156: 22 | L156: 4 | M156: 29 | O156: 69
C157: $35,001-$50,000 | D157: 213 | E157: 495 | F157: 396 | G157: 168 | H157: 16 | I157: 9 | K157: 6 | M157: 17 | N157: 6 | O157: 29 | S157: Snowmachining Activity Days | X157: Fishing Activity Days | AC157: Boating Activity Days | AH157: Hunting Activity Days
C158: $50,001-$75,000 | D158: 371 | E158: 844 | F158: 538 | G158: 341 | H158: 13 | I158: 9 | J158: 20 | M158: 33 | N158: 9 | O158: 122 | R158: Income | S158: Total Responses | T158: Lives in Study Area | U158: Activity at a Policy Site | V158: Activity Outside Study Area | W158: Income | X158: Total Responses | Y158: Lives in Study Area | Z158: Activity at a Policy Site | AA158: Activity Outside Study Area | AB158: Income | AC158: Total Responses | AD158: Lives in Study Area | AE158: Activity at a Policy Site | AF158: Activity Outside Study Area | AG158: Income | AH158: Total Responses | AI158: Lives in Study Area | AJ158: Activity at a Policy Site | AK158: Activity Outside Study Area
C159: $75,001-$99,999 | D159: 396 | E159: 1127 | F159: 564 | G159: 400 | H159: 22 | I159: 16 | J159: 8 | K159: 17 | L159: 6 | M159: 72 | N159: 6 | O159: 151 | R159: Less than $20,000 | S159: =D179 -> 63 | T159: =H179 -> 3 | U159: =L179 -> 0 | V159: =S159-U159 -> 63 | W159: Less than $20,000 | X159: =E179 -> 1112 | Y159: =I179 -> 6 | Z159: =M179 -> 171 | AA159: =X159-Z159 -> 941 | AB159: Less than $20,000 | AC159: =F179 -> 510 | AD159: =J179 -> 2 | AE159: =N179 -> 2 | AF159: =AC159-AE159 -> 508 | AG159: Less than $20,000 | AH159: =G179 -> 790 | AI159: =K179 -> 3 | AJ159: =O179 -> 110 | AK159: =AH159-AJ159 -> 680
C160: $100,000-$149,999 | D160: 608 | E160: 1411 | F160: 476 | G160: 586 | L160: 10 | M160: 40 | N160: 2 | O160: 184 | R160: $20,001-$35,000 | S160: 522 | T160: 9 | U160: =L180 -> 4 | V160: =S160-U160 -> 518 | W160: $20,001-$35,000 | X160: 1630 | Y160: 27 | Z160: =M180 -> 84 | AA160: =X160-Z160 -> 1546 | AB160: $20,001-$35,000 | AC160: 856 | AD160: 11 | AE160: =N180 -> 3 | AF160: =AC160-AE160 -> 853 | AG160: $20,001-$35,000 | AH160: 436 | AI160: 25 | AJ160: =O180 -> 165 | AK160: =AH160-AJ160 -> 271
C161: $150,000 + | D161: 259 | E161: 995 | F161: 597 | G161: 241 | L161: 16 | M161: 12 | N161: 26 | O161: 57 | R161: $35,001-$50,000 | S161: 376 | T161: 18 | U161: 0 | V161: 376 | W161: $35,001-$50,000 | X161: 1313 | Y161: 15 | Z161: 70 | AA161: 1243 | AB161: $35,001-$50,000 | AC161: 857 | AD161: 6 | AE161: 6 | AF161: 851 | AG161: $35,001-$50,000 | AH161: 862 | AI161: 12 | AJ161: 137 | AK161: 725
R162: $50,001-$75,000 | S162: 684 | T162: 15 | U162: 0 | V162: 684 | W162: $50,001-$75,000 | X162: 2285 | Y162: 21 | Z162: 84 | AA162: 2201 | AB162: $50,001-$75,000 | AC162: 1220 | AD162: 27 | AE162: 40 | AF162: 1180 | AG162: $50,001-$75,000 | AH162: 966 | AI162: 5 | AJ162: 296 | AK162: 670
R163: $75,001-$99,999 | S163: 653 | T163: 28 | U163: 6 | V163: 647 | W163: $75,001-$99,999 | X163: 3057 | Y163: 21 | Z163: 107 | AA163: 2950 | AB163: $75,001-$99,999 | AC163: 1518 | AD163: 12 | AE163: 11 | AF163: 1507 | AG163: $75,001-$99,999 | AH163: 1252 | AI163: 22 | AJ163: 338 | AK163: 914
C164: ROUND #2: 5/14 | R164: $100,000-$149,999 | S164: 823 | T164: 1 | U164: 10 | V164: 813 | W164: $100,000-$149,999 | X164: 3855 | Y164: 4 | Z164: 106 | AA164: 3749 | AB164: $100,000-$149,999 | AC164: 1771 | AD164: 1 | AE164: 2 | AF164: 1769 | AG164: $100,000-$149,999 | AH164: 1594 | AI164: 2 | AJ164: 372 | AK164: 1222
D165: Activity Days- All Respondents | H165: Activity Days- Lives in Study Area | L165: Activity Days in Study Area (Policy Site) | R165: $150,000 + | S165: 428 | T165: 2 | U165: 16 | V165: 412 | W165: $150,000 + | X165: 2024 | Y165: 2 | Z165: 58 | AA165: 1966 | AB165: $150,000 + | AC165: 1893 | AD165: 1 | AE165: 57 | AF165: 1836 | AG165: $150,000 + | AH165: 641 | AI165: 0 | AJ165: 121 | AK165: 520
C166: Income | D166: Snowmachining | E166: Fishing | F166: Boating | G166: Hunting | H166: Snowmachining | I166: Fishing | J166: Boating | K166: Hunting | L166: Snowmachining | M166: Fishing | N166: Boating | O166: Hunting
C167: Less than $20,000 | D167: 38 | E167: 741 | F167: 446 | G167: 734 | H167: 3 | I167: 4 | J167: 2 | K167: 3 | M167: 151 | O167: 92 | R167: Income | S167: Total Responses | T167: Lives in Study Area | U167: Activity in Study Area | W167: Income | X167: Total Responses | Y167: Lives in Study Area | Z167: Activity in Study Area | AB167: Income | AC167: Total Responses | AD167: Lives in Study Area | AE167: Activity in Study Area | AG167: Income | AH167: Total Responses | AI167: Lives in Study Area | AJ167: Activity in Study Area
C168: $20,001-$35,000 | D168: 370 | E168: 1002 | F168: 523 | G168: 312 | H168: 1 | I168: 10 | J168: 5 | K168: 3 | M168: 55 | N168: 3 | O168: 96 | R168: Less than $20,000 | S168: =S159/SUM(S$159:S$165)*100 -> 1.775147929 | T168: =T159/SUM(T$159:T$165)*100 -> 3.947368421 | U168: 0 | W168: Less than $20,000 | X168: =X159/SUM(X$159:X$165)*100 -> 7.279392511 | Y168: =Y159/SUM(Y$159:Y$165)*100 -> 6.25 | Z168: 25.14705882 | AB168: Less than $20,000 | AC168: =AC159/SUM(AC$159:AC$165)*100 -> 5.913043478 | AD168: =AD159/SUM(AD$159:AD$165)*100 -> 3.333333333 | AE168: 1.652892562 | AG168: Less than $20,000 | AH168: =AH159/SUM(AH$159:AH$165)*100 -> 12.07766397 | AI168: =AI159/SUM(AI$159:AI$165)*100 -> 4.347826087 | AJ168: 7.147498376
C169: $35,001-$50,000 | D169: 163 | E169: 818 | F169: 461 | G169: 694 | H169: 2 | I169: 6 | J169: 6 | K169: 6 | M169: 53 | O169: 108 | R169: $20,001-$35,000 | S169: =S160/SUM(S$159:S$165)*100 -> 14.70836855 | T169: 11.84210526 | U169: 11.11111111 | W169: $20,001-$35,000 | X169: =X160/SUM(X$159:X$165)*100 -> 10.67033255 | Y169: 28.125 | Z169: 12.35294118 | AB169: $20,001-$35,000 | AC169: =AC160/SUM(AC$159:AC$165)*100 -> 9.924637681 | AD169: 18.33333333 | AE169: 2.479338843 | AG169: $20,001-$35,000 | AH169: =AH160/SUM(AH$159:AH$165)*100 -> 6.665647455 | AI169: 36.23188406 | AJ169: 10.72124756
C170: $50,001-$75,000 | D170: 313 | E170: 1441 | F170: 682 | G170: 625 | H170: 2 | I170: 12 | J170: 7 | K170: 5 | M170: 51 | N170: 31 | O170: 174 | R170: $35,001-$50,000 | S170: 10.59453367 | T170: 23.68421053 | U170: 0 | W170: $35,001-$50,000 | X170: 8.595181985 | Y170: 15.625 | Z170: 10.29411765 | AB170: $35,001-$50,000 | AC170: 9.936231884 | AD170: 10 | AE170: 4.958677686 | AG170: $35,001-$50,000 | AH170: 13.17841309 | AI170: 17.39130435 | AJ170: 8.90188434
C171: $75,001-$99,999 | D171: 257 | E171: 1930 | F171: 954 | G171: 852 | H171: 6 | I171: 5 | J171: 4 | K171: 5 | M171: 35 | N171: 5 | O171: 187 | R171: $50,001-$75,000 | S171: 19.27303466 | T171: 19.73684211 | U171: 0 | W171: $50,001-$75,000 | X171: 14.95810422 | Y171: 21.875 | Z171: 12.35294118 | AB171: $50,001-$75,000 | AC171: 14.14492754 | AD171: 45 | AE171: 33.05785124 | AG171: $50,001-$75,000 | AH171: 14.76838404 | AI171: 7.246376812 | AJ171: 19.23326836
C172: $100,000-$149,999 | D172: 215 | E172: 2444 | F172: 1295 | G172: 1008 | H172: 1 | I172: 4 | J172: 1 | K172: 2 | M172: 66 | O172: 188 | R172: $75,001-$99,999 | S172: 18.39954917 | T172: 36.84210526 | U172: 16.66666667 | W172: $75,001-$99,999 | X172: 20.01178319 | Y172: 21.875 | Z172: 15.73529412 | AB172: $75,001-$99,999 | AC172: 17.6 | AD172: 20 | AE172: 9.090909091 | AG172: $75,001-$99,999 | AH172: 19.14080416 | AI172: 31.88405797 | AJ172: 21.96231319
C173: $150,000 + | D173: 169 | E173: 1029 | F173: 1296 | G173: 400 | H173: 2 | I173: 2 | J173: 1 | M173: 46 | N173: 31 | O173: 64 | R173: $100,000-$149,999 | S173: 23.18963088 | T173: 1.315789474 | U173: 27.77777778 | W173: $100,000-$149,999 | X173: 25.23566379 | Y173: 4.166666667 | Z173: 15.58823529 | AB173: $100,000-$149,999 | AC173: 20.53333333 | AD173: 1.666666667 | AE173: 1.652892562 | AG173: $100,000-$149,999 | AH173: 24.36936248 | AI173: 2.898550725 | AJ173: 24.17153996
R174: $150,000 + | S174: 12.05973514 | T174: 2.631578947 | U174: 44.44444444 | W174: $150,000 + | X174: 13.24954176 | Y174: 2.083333333 | Z174: 8.529411765 | AB174: $150,000 + | AC174: 21.94782609 | AD174: 1.666666667 | AE174: 47.10743802 | AG174: $150,000 + | AH174: 9.799724813 | AI174: 0 | AJ174: 7.862248213
C176: COMBINED
D177: Activity Days- All Respondents | H177: Activity Days- Lives in Study Area | L177: Activity Days in Study Area (Policy Site)
C178: Income | D178: Snowmachining | E178: Fishing | F178: Boating | G178: Hunting | H178: Snowmachining | I178: Fishing | J178: Boating | K178: Hunting | L178: Snowmachining | M178: Fishing | N178: Boating | O178: Hunting
C179: Less than $20,000 | D179: =D167+D155 -> 63 | E179: =E167+E155 -> 1112 | F179: 510 | G179: 790 | H179: =H167+H155 -> 3 | I179: =I167+I155 -> 6 | J179: 2 | K179: 3 | L179: =L155+L167 -> 0 | M179: =M155+M167 -> 171 | N179: 2 | O179: 110
C180: $20,001-$35,000 | D180: =D168+D156 -> 522 | E180: 1630 | F180: 856 | G180: 436 | H180: =H168+H156 -> 9 | I180: 27 | J180: 11 | K180: 25 | L180: =L156+L168 -> 4 | M180: 84 | N180: 3 | O180: 165
C181: $35,001-$50,000 | D181: =D169+D157 -> 376 | E181: 1313 | F181: 857 | G181: 862 | H181: =H169+H157 -> 18 | I181: 15 | J181: 6 | K181: 12 | L181: =L157+L169 -> 0 | M181: 70 | N181: 6 | O181: 137
C182: $50,001-$75,000 | D182: =D170+D158 -> 684 | E182: 2285 | F182: 1220 | G182: 966 | H182: =H170+H158 -> 15 | I182: 21 | J182: 27 | K182: 5 | L182: =L158+L170 -> 0 | M182: 84 | N182: 40 | O182: 296
C183: $75,001-$99,999 | D183: =D171+D159 -> 653 | E183: 3057 | F183: 1518 | G183: 1252 | H183: =H171+H159 -> 28 | I183: 21 | J183: 12 | K183: 22 | L183: =L159+L171 -> 6 | M183: 107 | N183: 11 | O183: 338
C184: $100,000-$149,999 | D184: =D172+D160 -> 823 | E184: 3855 | F184: 1771 | G184: 1594 | H184: =H172+H160 -> 1 | I184: 4 | J184: 1 | K184: 2 | L184: =L160+L172 -> 10 | M184: 106 | N184: 2 | O184: 372
C185: $150,000 + | D185: =D173+D161 -> 428 | E185: 2024 | F185: 1893 | G185: 641 | H185: =H173+H161 -> 2 | I185: 2 | J185: 1 | K185: 0 | L185: =L161+L173 -> 16 | M185: 58 | N185: 57 | O185: 121
D187: =STDEV(D179:D185) -> 249.4206621 | E187: =STDEV(E179:E185) -> 983.6065803 | F187: 518.437855 | G187: 386.7642939
C190: All Boating Sites | I190: All Fishing Sites
C191: Rank | D191: Location | E191: Access | F191: Activity Days | G191: % Total | I191: Rank | J191: Location | K191: Access | L191: Activity Days | M191: % Total
C192: 1 | D192: Biglake | E192: Big Lake | F192: 566 | G192: 0.05882964349 | I192: 1 | J192: Kenai River | K192: Cook Inlet to Soldotna Bridge | L192: 2287 | M192: 0.1287507741
C193: 2 | D193: Prince William Sound | E193: Whittier | F193: 539 | G193: 0.0560232824 | I193: 2 | J193: Resurrection Bay | K193: Seward | L193: 639 | M193: 0.0359736531
C194: 3 | D194: Kachemak Bay | E194: Homer | F194: 385 | G194: 0.04001663029 | I194: 3 | J194: Kachemak Bay | K194: N/A | L194: 567 | M194: 0.03192028374
C195: 4 | D195: Nancy Lakes | E195: N/A | F195: 357 | G195: 0.0371063299 | I195: 4 | J195: Prince William Sound | K195: Whittier | L195: 565 | M195: 0.03180769014
C196: 5 | D196: Chena River | E196: Fairbanks | F196: 346 | G196: 0.03596299761 | I196: 5 | J196: Russian River | K196: N/A | L196: 486 | M196: 0.0273602432
C197: Study Area Only | I197: Study Area Only | O197: Question For Michelle-
C198: Rank | D198: Location | E198: Access | F198: Activity Days | G198: % Total | I198: Rank | J198: Location | K198: Access | L198: Activity Days | M198: % Total | O198: Some Policy area/ study ara sites seem far out of study area
C199: 1 | D199: Susitna River | E199: Deshka Landing | F199: 42 | G199: 0.004365450577 | I199: 1 | J199: Talkeetna River | K199: N/A | L199: 159 | M199: 0.008951190677 | O199: Some policy area designations for one type of rec are not lables as policy sites for the same location for different rec type
C200: 2 | D200: Yentna River | E200: Deshka Landing | F200: 30 | G200: 0.003118178983 | I200: 2 | J200: Montana Creek | K200: N/A | L200: 143 | M200: 0.00805044193
C201: 3 | D201: Deshka River | E201: Deshka Landing | F201: 28 | G201: 0.002910300385 | I201: 3 | J201: Willow Creek | K201: N/A | L201: 126 | M201: 0.007093396386
C202: 4 | D202: Willow Creek | E202: Willow | F202: 27 | G202: 0.002806361085 | I202: 4 | J202: Deshka River | K202: N/A | L202: 100 | M202: 0.005629679671
C203: 5 | D203: Chulitna River | E203: Parks Highway | F203: 14 | G203: 0.001455150192 | I203: 5 | J203: Clear Creek | K203: N/A | L203: 38 | M203: 0.002139278275
C206: All Hunting Sites | I206: All Snowmachine Sites
C207: Rank | D207: Location | E207: Access | F207: Activity Days | G207: % Total | I207: Rank | J207: Location | K207: Access | L207: Activity Days | M207: % Total
C208: 1 | D208: Alone Creek | F208: 387 | G208: 0.05337931034 | I208: 1 | J208: Petersville | K208: West Susitna Side | L208: 343 | M208: =L208/$N$221 -> 0.09033447459
C209: 2 | D209: Denali Hwy | E209: Paxson | F209: 372 | G209: 0.05131034483 | I209: 2 | J209: Chitina | L209: 272 | M209: =L209/$N$221 -> 0.07163550171
C210: 3 | D210: Brooks Range | E210: Fairbanks | F210: 294 | G210: 0.04055172414 | I210: 3 | J210: Fort Yukon | L210: 200 | M210: 0.05267316302
C211: 4 | D211: Cantwell | F211: 255 | G211: 0.03517241379 | I211: 4 | J211: Talkeetna Area | K211: Talkeetna | L211: 168 | M211: 0.04424545694
C212: 5 | D212: Glenn Hwy | E212: Copper Center | F212: 252 | G212: 0.03475862069 | I212: 5 | J212: Lake Louise | L212: 157 | M212: 0.04134843297
C213: Study Area Only | I213: Study Area Only
C214: Rank | D214: Location | E214: Access | F214: Activity Days | G214: % Total | I214: Rank | J214: Location | K214: Access | L214: Activity Days | M214: % Total
C215: 1 | D215: Denali Hwy | E215: Paxson | F215: 372 | G215: 0.05131034483 | I215: 1 | J215: Susitna River | K215: Deshka Landing | L215: 36 | M215: =L215/N221 -> 0.009481169344
C216: 2 | D216: Cantwell | F216: 255 | G216: 0.03517241379 | I216: 2
C217: 3 | D217: Lake Louise | F217: 171 | G217: 0.0235862069 | I217: 3
C218: 4 | D218: Denali Highway | E218: Cantwell Side | F218: 152 | G218: 0.02096551724 | I218: 4
C219: 5 | D219: Denali Highway | E219: Maclaren River | F219: 96 | G219: 0.01324137931 | I219: 5
N221: 3797
C225: Row Labels | D225: Count of Unique Respondent ID | E225: Average of Total Days Snowmachinging (NEI) | F225: Average of Total Days Fishing 2012 (NEI) | G225: Average of Total Days Boating (NEI) | H225: Average of Total Days Hunting (NEI)
C226: 19 & Under | D226: 10 | E226: 0.8 | F226: 1.7 | G226: 0.2 | H226: 0.1
C227: 20-29 years | D227: 147 | E227: 0.8503401361 | F227: 3.56462585 | G227: 1.897959184 | H227: 0.4761904762
C228: 30-39 years | D228: 248 | E228: 1.701612903 | F228: 4.887096774 | G228: 2.254032258 | H228: 1.903225806
C229: 40-49 years | D229: 242 | E229: 2.871900826 | F229: 5.710743802 | G229: 1.904958678 | H229: 1.752066116
C230: 50-59 years | D230: 379 | E230: 1.002638522 | F230: 4.390501319 | G230: 2.255936675 | H230: 1.519788918
C231: 60-69 years | D231: 370 | E231: 0.6945945946 | F231: 3.440540541 | G231: 2.416216216 | H231: 1.162162162
C232: 70-79 years | D232: 152 | E232: 1.236842105 | F232: 3.881578947 | G232: 1.697368421 | H232: 1.684210526
C233: 80-89 years | D233: 43 | E233: 0.4651162791 | F233: 0.8372093023 | G233: 0.1162790698 | H233: 0.4651162791
C234: 90+ years | D234: 10 | E234: 0 | F234: 0.3 | G234: 12 | H234: 0
C235: (blank) | D235: 107 | E235: 0.8878504673 | F235: 3.065420561 | G235: 1.009345794 | H235: 0.5046728972
C237: Row Labels | D237: Count of Unique ID (NEI) | E237: Average of Total Days Snowmachinging (NEI) | F237: Average of Total Days Fishing (NEI) | G237: Average of Total Days Boating (NEI) | H237: Average of Total Days Hunting (NEI)
... 55 more rows

Sheet Combined Site List
A1: Source: "Activity Days" sheets in each survey analysis workbook
A3: Survey Date | B3: Activity | C3: Site Name | D3: Site Code | E3: GMU | F3: Activity Days | G3: AnalysisSite | H3: PolicySite | I3: Lives in SA | K3: PolicySite | L3: (All)
A4: 2013-08-01 | B4: Snow Machining | C4: 7 Mile Lake Trails-Skilak | D4: Snow 1 | F4: 11 | G4: =IFERROR(VLOOKUP(D4,'Study Area Site Variable'!$B$4:$J$1240,6,FALSE),0) -> 0 | H4: =IFERROR(VLOOKUP(D4,'Study Area Site Variable'!$B$4:$H$1240,7,FALSE),0) -> 0 | I4: 0 | K4: Survey Date | L4: (All)
A5: 2013-08-01 | B5: Snow Machining | C5: Badger Road-North Pole | D5: Snow 2 | F5: 5 | G5: =IFERROR(VLOOKUP(D5,'Study Area Site Variable'!$B$4:$J$1240,6,FALSE),0) -> 0 | H5: =IFERROR(VLOOKUP(D5,'Study Area Site Variable'!$B$4:$H$1240,7,FALSE),0) -> 0 | I5: 0
A6: 2013-08-01 | B6: Snow Machining | C6: Bethel | D6: Snow 3 | F6: 30 | G6: =IFERROR(VLOOKUP(D6,'Study Area Site Variable'!$B$4:$J$1240,6,FALSE),0) -> 0 | H6: =IFERROR(VLOOKUP(D6,'Study Area Site Variable'!$B$4:$H$1240,7,FALSE),0) -> 0 | I6: 0 | K6: Row Labels | L6: Sum of Activity Days | M6: Sum of Lives in SA | N6: Sum of PolicySite
A7: 2013-08-01 | B7: Snow Machining | C7: Bettles | D7: Snow 4 | F7: 30 | G7: =IFERROR(VLOOKUP(D7,'Study Area Site Variable'!$B$4:$J$1240,6,FALSE),0) -> 0 | H7: =IFERROR(VLOOKUP(D7,'Study Area Site Variable'!$B$4:$H$1240,7,FALSE),0) -> 0 | I7: 0 | K7: Boating | L7: 9621 | M7: 773 | N7: 18
A8: 2013-08-01 | B8: Snow Machining | C8: Big Lake | D8: Snow 5 | F8: 66 | G8: =IFERROR(VLOOKUP(D8,'Study Area Site Variable'!$B$4:$J$1240,6,FALSE),0) -> 1 | H8: =IFERROR(VLOOKUP(D8,'Study Area Site Variable'!$B$4:$H$1240,7,FALSE),0) -> 0 | I8: 0 | K8: 20 Mile River-Boat Launch | L8: 14 | M8: 0 | N8: 0
A9: 2013-08-01 | B9: Snow Machining | C9: Birch Creek-Steese Highway | D9: Snow 6 | F9: 6 | G9: =IFERROR(VLOOKUP(D9,'Study Area Site Variable'!$B$4:$J$1240,6,FALSE),0) -> 0 | H9: =IFERROR(VLOOKUP(D9,'Study Area Site Variable'!$B$4:$H$1240,7,FALSE),0) -> 0 | I9: 0 | K9: 3 Rivers (Talkeetna/Susitna/Chultina Rivers)-Talkeetna | L9: 2 | M9: 0 | N9: 0
A10: 2013-08-01 | B10: Snow Machining | C10: Birch Lake-Delta Junction | D10: Snow 7 | F10: 19 | G10: =IFERROR(VLOOKUP(D10,'Study Area Site Variable'!$B$4:$J$1240,6,FALSE),0) -> 0 | H10: =IFERROR(VLOOKUP(D10,'Study Area Site Variable'!$B$4:$H$1240,7,FALSE),0) -> 0 | I10: 0 | K10: 40 mile River-40 mile crossing | L10: 4 | M10: 0 | N10: 0
A11: 2013-08-01 | B11: Snow Machining | C11: Cache Creek/Ester-Cache Creek | D11: Snow 8 | F11: 3 | G11: =IFERROR(VLOOKUP(D11,'Study Area Site Variable'!$B$4:$J$1240,6,FALSE),0) -> 0 | H11: =IFERROR(VLOOKUP(D11,'Study Area Site Variable'!$B$4:$H$1240,7,FALSE),0) -> 0 | I11: 0 | K11: 6 mile lake-JBER | L11: 1 | M11: 0 | N11: 0
A12: 2013-08-01 | B12: Snow Machining | C12: Cantwell | D12: Snow 9 | F12: 74 | G12: =IFERROR(VLOOKUP(D12,'Study Area Site Variable'!$B$4:$J$1240,6,FALSE),0) -> 1 | H12: =IFERROR(VLOOKUP(D12,'Study Area Site Variable'!$B$4:$H$1240,7,FALSE),0) -> 0 | I12: 22 | K12: Alaqanek Sloosh-Boat Launch | L12: 1 | M12: 0 | N12: 0
A13: 2013-08-01 | B13: Snow Machining | C13: Canwell Glacier-Miller Creek | D13: Snow 10 | F13: 3 | G13: =IFERROR(VLOOKUP(D13,'Study Area Site Variable'!$B$4:$J$1240,6,FALSE),0) -> 0 | H13: =IFERROR(VLOOKUP(D13,'Study Area Site Variable'!$B$4:$H$1240,7,FALSE),0) -> 0 | I13: 0 | K13: Alexander Creek-Anchorage | L13: 5 | M13: 0 | N13: 0
A14: 2013-08-01 | B14: Snow Machining | C14: Chatanika-Elliot Highway | D14: Snow 11 | F14: 31 | G14: =IFERROR(VLOOKUP(D14,'Study Area Site Variable'!$B$4:$J$1240,6,FALSE),0) -> 1 | H14: =IFERROR(VLOOKUP(D14,'Study Area Site Variable'!$B$4:$H$1240,7,FALSE),0) -> 0 | I14: 0 | K14: Amber Lake-Amber Lake Boat Launch | L14: 47 | M14: 0 | N14: 0
A15: 2013-08-01 | B15: Snow Machining | C15: Chena Flood Control-North Pole | D15: Snow 12 | F15: 64 | G15: =IFERROR(VLOOKUP(D15,'Study Area Site Variable'!$B$4:$J$1240,6,FALSE),0) -> 1 | H15: =IFERROR(VLOOKUP(D15,'Study Area Site Variable'!$B$4:$H$1240,7,FALSE),0) -> 0 | I15: 0 | K15: Anchaiatie | L15: 1 | M15: 0 | N15: 0
A16: 2013-08-01 | B16: Snow Machining | C16: Chena Hot Springs | D16: Snow 13 | F16: 39 | G16: =IFERROR(VLOOKUP(D16,'Study Area Site Variable'!$B$4:$J$1240,6,FALSE),0) -> 1 | H16: =IFERROR(VLOOKUP(D16,'Study Area Site Variable'!$B$4:$H$1240,7,FALSE),0) -> 0 | I16: 0 | K16: Anchorage Lakes | L16: 20 | M16: 0 | N16: 0
A17: 2013-08-01 | B17: Snow Machining | C17: Chena Lakes-North Pole | D17: Snow 14 | F17: 23 | G17: =IFERROR(VLOOKUP(D17,'Study Area Site Variable'!$B$4:$J$1240,6,FALSE),0) -> 1 | H17: =IFERROR(VLOOKUP(D17,'Study Area Site Variable'!$B$4:$H$1240,7,FALSE),0) -> 0 | I17: 0 | K17: Andreafsky River-St Marys | L17: 3 | M17: 0 | N17: 0
A18: 2013-08-01 | B18: Snow Machining | C18: Chena River State Recreation Area-North Pole | D18: Snow 15 | F18: 111 | G18: =IFERROR(VLOOKUP(D18,'Study Area Site Variable'!$B$4:$J$1240,6,FALSE),0) -> 1 | H18: =IFERROR(VLOOKUP(D18,'Study Area Site Variable'!$B$4:$H$1240,7,FALSE),0) -> 0 | I18: 0 | K18: aniak river-aniak,ak | L18: 2 | M18: 0 | N18: 0
A19: 2013-08-01 | B19: Snow Machining | C19: Chickaloon | D19: Snow 16 | F19: 7 | G19: =IFERROR(VLOOKUP(D19,'Study Area Site Variable'!$B$4:$J$1240,6,FALSE),0) -> 0 | H19: =IFERROR(VLOOKUP(D19,'Study Area Site Variable'!$B$4:$H$1240,7,FALSE),0) -> 0 | I19: 0 | K19: Annette Bay-Metlakatla | L19: 1 | M19: 0 | N19: 0
A20: 2013-08-01 | B20: Snow Machining | C20: Copper River Valley-Glennallen | D20: Snow 17 | F20: 13 | G20: =IFERROR(VLOOKUP(D20,'Study Area Site Variable'!$B$4:$J$1240,6,FALSE),0) -> 1 | H20: =IFERROR(VLOOKUP(D20,'Study Area Site Variable'!$B$4:$H$1240,7,FALSE),0) -> 0 | I20: 0 | K20: Anvik River-Anvik | L20: 18 | M20: 0 | N20: 0
A21: 2013-08-01 | B21: Snow Machining | C21: Denali Highway-Cantwell | D21: Snow 18 | F21: 16 | G21: =IFERROR(VLOOKUP(D21,'Study Area Site Variable'!$B$4:$J$1240,6,FALSE),0) -> 0 | H21: =IFERROR(VLOOKUP(D21,'Study Area Site Variable'!$B$4:$H$1240,7,FALSE),0) -> 0 | I21: 0 | K21: Auk Bay-Juneau Boat Launch | L21: 13 | M21: 0 | N21: 0
A22: 2013-08-01 | B22: Snow Machining | C22: Denali Highway-Central | D22: Snow 19 | F22: 9 | G22: =IFERROR(VLOOKUP(D22,'Study Area Site Variable'!$B$4:$J$1240,6,FALSE),0) -> 0 | H22: =IFERROR(VLOOKUP(D22,'Study Area Site Variable'!$B$4:$H$1240,7,FALSE),0) -> 0 | I22: 0 | K22: Badger Slough-North Pole | L22: 11 | M22: 0 | N22: 0
A23: 2013-08-01 | B23: Snow Machining | C23: Denali Highway-Paxson | D23: Snow 20 | F23: 10 | G23: =IFERROR(VLOOKUP(D23,'Study Area Site Variable'!$B$4:$J$1240,6,FALSE),0) -> 1 | H23: =IFERROR(VLOOKUP(D23,'Study Area Site Variable'!$B$4:$H$1240,7,FALSE),0) -> 0 | I23: 0 | K23: Bathing Beauty-Richardson Hwy | L23: 5 | M23: 0 | N23: 0
A24: 2013-08-01 | B24: Snow Machining | C24: Denali National Park-Cantwell | D24: Snow 21 | F24: 2 | G24: =IFERROR(VLOOKUP(D24,'Study Area Site Variable'!$B$4:$J$1240,6,FALSE),0) -> 0 | H24: =IFERROR(VLOOKUP(D24,'Study Area Site Variable'!$B$4:$H$1240,7,FALSE),0) -> 0 | I24: 0 | K24: Beach Lake-Birchwood | L24: 24 | M24: 0 | N24: 0
A25: 2013-08-01 | B25: Snow Machining | C25: Drill Lake-Chickaloon | D25: Snow 22 | F25: 35 | G25: =IFERROR(VLOOKUP(D25,'Study Area Site Variable'!$B$4:$J$1240,6,FALSE),0) -> 1 | H25: =IFERROR(VLOOKUP(D25,'Study Area Site Variable'!$B$4:$H$1240,7,FALSE),0) -> 0 | I25: 0 | K25: Bear Lake-private property | L25: 1 | M25: 0 | N25: 0
A26: 2013-08-01 | B26: Snow Machining | C26: Dry Creek SRA- Gulkana | D26: Snow 23 | F26: 1 | G26: =IFERROR(VLOOKUP(D26,'Study Area Site Variable'!$B$4:$J$1240,6,FALSE),0) -> 0 | H26: =IFERROR(VLOOKUP(D26,'Study Area Site Variable'!$B$4:$H$1240,7,FALSE),0) -> 0 | I26: 0 | K26: Bear Lake-Seward | L26: 8 | M26: 0 | N26: 0
A27: 2013-08-01 | B27: Snow Machining | C27: Eagle River Valley | D27: Snow 24 | F27: 6 | G27: =IFERROR(VLOOKUP(D27,'Study Area Site Variable'!$B$4:$J$1240,6,FALSE),0) -> 0 | H27: =IFERROR(VLOOKUP(D27,'Study Area Site Variable'!$B$4:$H$1240,7,FALSE),0) -> 0 | I27: 0 | K27: Bear Paw Lake-Houston | L27: 6 | M27: 0 | N27: 0
A28: 2013-08-01 | B28: Snow Machining | C28: Eureka | D28: Snow 25 | F28: 66 | G28: =IFERROR(VLOOKUP(D28,'Study Area Site Variable'!$B$4:$J$1240,6,FALSE),0) -> 1 | H28: =IFERROR(VLOOKUP(D28,'Study Area Site Variable'!$B$4:$H$1240,7,FALSE),0) -> 0 | I28: 0 | K28: Beaver Creek-Nome Creek, off US Creek Rd, White Mtns Rec Area | L28: 2 | M28: 0 | N28: 0
A29: 2013-08-01 | B29: Snow Machining | C29: Eyak Mountain-Cordova | D29: Snow 26 | F29: 4 | G29: =IFERROR(VLOOKUP(D29,'Study Area Site Variable'!$B$4:$J$1240,6,FALSE),0) -> 0 | H29: =IFERROR(VLOOKUP(D29,'Study Area Site Variable'!$B$4:$H$1240,7,FALSE),0) -> 0 | I29: 0 | K29: Beaver Creek-Ophir | L29: 9 | M29: 0 | N29: 0
A30: 2013-08-01 | B30: Snow Machining | C30: Fairbanks | D30: Snow 27 | F30: 79 | G30: =IFERROR(VLOOKUP(D30,'Study Area Site Variable'!$B$4:$J$1240,6,FALSE),0) -> 1 | H30: =IFERROR(VLOOKUP(D30,'Study Area Site Variable'!$B$4:$H$1240,7,FALSE),0) -> 0 | I30: 0 | K30: Beaver Pond-Richardson Hwy | L30: 2 | M30: 0 | N30: 0
A31: 2013-08-01 | B31: Snow Machining | C31: Forgotten Lake--Lake Louise | D31: Snow 28 | F31: 3 | G31: =IFERROR(VLOOKUP(D31,'Study Area Site Variable'!$B$4:$J$1240,6,FALSE),0) -> 0 | H31: =IFERROR(VLOOKUP(D31,'Study Area Site Variable'!$B$4:$H$1240,7,FALSE),0) -> 0 | I31: 0 | K31: Behm Canal-Ketchikan | L31: 29 | M31: 0 | N31: 0
A32: 2013-08-01 | B32: Snow Machining | C32: Funny River Road-Kenai | D32: Snow 29 | F32: 3 | G32: =IFERROR(VLOOKUP(D32,'Study Area Site Variable'!$B$4:$J$1240,6,FALSE),0) -> 0 | H32: =IFERROR(VLOOKUP(D32,'Study Area Site Variable'!$B$4:$H$1240,7,FALSE),0) -> 0 | I32: 0 | K32: Bell Lake-Parks Hwy mile 127 | L32: 4 | M32: 0 | N32: 0
A33: 2013-08-01 | B33: Snow Machining | C33: Gakona | D33: Snow 30 | F33: 3 | G33: =IFERROR(VLOOKUP(D33,'Study Area Site Variable'!$B$4:$J$1240,6,FALSE),0) -> 0 | H33: =IFERROR(VLOOKUP(D33,'Study Area Site Variable'!$B$4:$H$1240,7,FALSE),0) -> 0 | I33: 0 | K33: Benka Lake-Talkeetna | L33: 35 | M33: 8 | N33: 0
A34: 2013-08-01 | B34: Snow Machining | C34: Girdwood | D34: Snow 31 | F34: 6 | G34: =IFERROR(VLOOKUP(D34,'Study Area Site Variable'!$B$4:$J$1240,6,FALSE),0) -> 0 | H34: =IFERROR(VLOOKUP(D34,'Study Area Site Variable'!$B$4:$H$1240,7,FALSE),0) -> 0 | I34: 0 | K34: Bering Sea-Akutan | L34: 1 | M34: 0 | N34: 0
A35: 2013-08-01 | B35: Snow Machining | C35: Gunsight Mountain | D35: Snow 32 | F35: 3 | G35: =IFERROR(VLOOKUP(D35,'Study Area Site Variable'!$B$4:$J$1240,6,FALSE),0) -> 0 | H35: =IFERROR(VLOOKUP(D35,'Study Area Site Variable'!$B$4:$H$1240,7,FALSE),0) -> 0 | I35: 0 | K35: Big Beaver-Big Lake | L35: 8 | M35: 0 | N35: 0
A36: 2013-08-01 | B36: Snow Machining | C36: Harding Lake Trails--Salcha Drive | D36: Snow 33 | F36: 3 | G36: =IFERROR(VLOOKUP(D36,'Study Area Site Variable'!$B$4:$J$1240,6,FALSE),0) -> 0 | H36: =IFERROR(VLOOKUP(D36,'Study Area Site Variable'!$B$4:$H$1240,7,FALSE),0) -> 0 | I36: 0 | K36: Big Lake-Big Lake | L36: 566 | M36: 0 | N36: 0
A37: 2013-08-01 | B37: Snow Machining | C37: Hatcher Pass-Palmer Side | D37: Snow 34 | F37: 67 | G37: =IFERROR(VLOOKUP(D37,'Study Area Site Variable'!$B$4:$J$1240,6,FALSE),0) -> 1 | H37: =IFERROR(VLOOKUP(D37,'Study Area Site Variable'!$B$4:$H$1240,7,FALSE),0) -> 0 | I37: 13 | K37: Birch Creek-Circle | L37: 7 | M37: 0 | N37: 0
A38: 2013-08-01 | B38: Snow Machining | C38: Hatcher Pass-Unspecified | D38: Snow 35 | F38: 20 | G38: =IFERROR(VLOOKUP(D38,'Study Area Site Variable'!$B$4:$J$1240,6,FALSE),0) -> 0 | H38: =IFERROR(VLOOKUP(D38,'Study Area Site Variable'!$B$4:$H$1240,7,FALSE),0) -> 0 | I38: 0 | K38: Birch Creek-Talkeetna spur road to Susitna river | L38: 2 | M38: 2 | N38: 0
A39: 2013-08-01 | B39: Snow Machining | C39: Hatcher Pass-Willow Side | D39: Snow 36 | F39: 19 | G39: =IFERROR(VLOOKUP(D39,'Study Area Site Variable'!$B$4:$J$1240,6,FALSE),0) -> 1 | H39: =IFERROR(VLOOKUP(D39,'Study Area Site Variable'!$B$4:$H$1240,7,FALSE),0) -> 0 | I39: 0 | K39: Birch Lake-Birch Lake | L39: 39 | M39: 0 | N39: 0
A40: 2013-08-01 | B40: Snow Machining | C40: Healy Lake--Cummings Rd | D40: Snow 37 | F40: 4 | G40: =IFERROR(VLOOKUP(D40,'Study Area Site Variable'!$B$4:$J$1240,6,FALSE),0) -> 0 | H40: =IFERROR(VLOOKUP(D40,'Study Area Site Variable'!$B$4:$H$1240,7,FALSE),0) -> 0 | I40: 0 | K40: Bird Creek-Bird Creek | L40: 2 | M40: 0 | N40: 0
A41: 2013-08-01 | B41: Snow Machining | C41: Hoodoo Mountains-Paxson | D41: Snow 38 | F41: 107 | G41: =IFERROR(VLOOKUP(D41,'Study Area Site Variable'!$B$4:$J$1240,6,FALSE),0) -> 1 | H41: =IFERROR(VLOOKUP(D41,'Study Area Site Variable'!$B$4:$H$1240,7,FALSE),0) -> 0 | I41: 0 | K41: Black River-Fort Yukon | L41: 3 | M41: 0 | N41: 0
A42: 2013-08-01 | B42: Snow Machining | C42: Houston | D42: Snow 39 | F42: 1 | G42: =IFERROR(VLOOKUP(D42,'Study Area Site Variable'!$B$4:$J$1240,6,FALSE),0) -> 0 | H42: =IFERROR(VLOOKUP(D42,'Study Area Site Variable'!$B$4:$H$1240,7,FALSE),0) -> 0 | I42: 0 | K42: blair lake | L42: 1 | M42: 0 | N42: 0
A43: 2013-08-01 | B43: Snow Machining | C43: Johnson Pass-Kenai Peninsula | D43: Snow 40 | F43: 1 | G43: =IFERROR(VLOOKUP(D43,'Study Area Site Variable'!$B$4:$J$1240,6,FALSE),0) -> 0 | H43: =IFERROR(VLOOKUP(D43,'Study Area Site Variable'!$B$4:$H$1240,7,FALSE),0) -> 0 | I43: 0 | K43: Bolio Lake-Ft. Greely | L43: 2 | M43: 0 | N43: 0
A44: 2013-08-01 | B44: Snow Machining | C44: Kashwitna River-Eagles Nest | D44: Snow 41 | F44: 10 | G44: =IFERROR(VLOOKUP(D44,'Study Area Site Variable'!$B$4:$J$1240,6,FALSE),0) -> 0 | H44: =IFERROR(VLOOKUP(D44,'Study Area Site Variable'!$B$4:$H$1240,7,FALSE),0) -> 0 | I44: 0 | K44: Bonnie Lake-Launch | L44: 15 | M44: 0 | N44: 0
A45: 2013-08-01 | B45: Snow Machining | C45: Kenai-Unspecified | D45: Snow 42 | F45: 3 | G45: =IFERROR(VLOOKUP(D45,'Study Area Site Variable'!$B$4:$J$1240,6,FALSE),0) -> 0 | H45: =IFERROR(VLOOKUP(D45,'Study Area Site Variable'!$B$4:$H$1240,7,FALSE),0) -> 0 | I45: 0 | K45: Bontenintata-Campground | L45: 5 | M45: 0 | N45: 0
A46: 2013-08-01 | B46: Snow Machining | C46: King River | D46: Snow 43 | F46: 18 | G46: =IFERROR(VLOOKUP(D46,'Study Area Site Variable'!$B$4:$J$1240,6,FALSE),0) -> 1 | H46: =IFERROR(VLOOKUP(D46,'Study Area Site Variable'!$B$4:$H$1240,7,FALSE),0) -> 0 | I46: 0 | K46: Butterfly Lake-Willow | L46: 5 | M46: 0 | N46: 0
A47: 2013-08-01 | B47: Snow Machining | C47: Klutina Lake | D47: Snow 44 | F47: 4 | G47: =IFERROR(VLOOKUP(D47,'Study Area Site Variable'!$B$4:$J$1240,6,FALSE),0) -> 0 | H47: =IFERROR(VLOOKUP(D47,'Study Area Site Variable'!$B$4:$H$1240,7,FALSE),0) -> 0 | I47: 0 | K47: Byers Lake/Susitna River-Talkeetna | L47: 1 | M47: 0 | N47: 0
A48: 2013-08-01 | B48: Snow Machining | C48: Knik Goose Bay Road | D48: Snow 45 | F48: 6 | G48: =IFERROR(VLOOKUP(D48,'Study Area Site Variable'!$B$4:$J$1240,6,FALSE),0) -> 0 | H48: =IFERROR(VLOOKUP(D48,'Study Area Site Variable'!$B$4:$H$1240,7,FALSE),0) -> 0 | I48: 0 | K48: Byers Lake-Boat Launch Campground | L48: 42 | M48: 5 | N48: 0
A49: 2013-08-01 | B49: Snow Machining | C49: Knik River | D49: Snow 46 | F49: 3 | G49: =IFERROR(VLOOKUP(D49,'Study Area Site Variable'!$B$4:$J$1240,6,FALSE),0) -> 0 | H49: =IFERROR(VLOOKUP(D49,'Study Area Site Variable'!$B$4:$H$1240,7,FALSE),0) -> 0 | I49: 0 | K49: Campbell Creek-Anchorage | L49: 19 | M49: 0 | N49: 0
A50: 2013-08-01 | B50: Snow Machining | C50: Lake Louise | D50: Snow 47 | F50: 57 | G50: =IFERROR(VLOOKUP(D50,'Study Area Site Variable'!$B$4:$J$1240,6,FALSE),0) -> 1 | H50: =IFERROR(VLOOKUP(D50,'Study Area Site Variable'!$B$4:$H$1240,7,FALSE),0) -> 0 | I50: 0 | K50: Campbell Lake-Anchorage | L50: 44 | M50: 0 | N50: 0
A51: 2013-08-01 | B51: Snow Machining | C51: Long Lake--Willow | D51: Snow 48 | F51: 2 | G51: =IFERROR(VLOOKUP(D51,'Study Area Site Variable'!$B$4:$J$1240,6,FALSE),0) -> 0 | H51: =IFERROR(VLOOKUP(D51,'Study Area Site Variable'!$B$4:$H$1240,7,FALSE),0) -> 0 | I51: 0 | K51: Campbell Lake-Private Property | L51: 3 | M51: 0 | N51: 0
A52: 2013-08-01 | B52: Snow Machining | C52: Loss Lake--Cooper Landing | D52: Snow 49 | F52: 1 | G52: =IFERROR(VLOOKUP(D52,'Study Area Site Variable'!$B$4:$J$1240,6,FALSE),0) -> 0 | H52: =IFERROR(VLOOKUP(D52,'Study Area Site Variable'!$B$4:$H$1240,7,FALSE),0) -> 0 | I52: 0 | K52: Canning River-Headwaters airstrip | L52: 2 | M52: 0 | N52: 0
A53: 2013-08-01 | B53: Snow Machining | C53: Lost Lake Trail-Seward | D53: Snow 50 | F53: 4 | G53: =IFERROR(VLOOKUP(D53,'Study Area Site Variable'!$B$4:$J$1240,6,FALSE),0) -> 1 | H53: =IFERROR(VLOOKUP(D53,'Study Area Site Variable'!$B$4:$H$1240,7,FALSE),0) -> 0 | I53: 0 | K53: Canoe Trails-Tanana Lake Trailhead | L53: 1 | M53: 0 | N53: 0
A54: 2013-08-01 | B54: Snow Machining | C54: Manley Hot Springs | D54: Snow 51 | F54: 23 | G54: =IFERROR(VLOOKUP(D54,'Study Area Site Variable'!$B$4:$J$1240,6,FALSE),0) -> 1 | H54: =IFERROR(VLOOKUP(D54,'Study Area Site Variable'!$B$4:$H$1240,7,FALSE),0) -> 0 | I54: 0 | K54: Canyon Creek-Seward Hwy | L54: 4 | M54: 0 | N54: 0
A55: 2013-08-01 | B55: Snow Machining | C55: Matanuska River | D55: Snow 52 | F55: 3 | G55: =IFERROR(VLOOKUP(D55,'Study Area Site Variable'!$B$4:$J$1240,6,FALSE),0) -> 0 | H55: =IFERROR(VLOOKUP(D55,'Study Area Site Variable'!$B$4:$H$1240,7,FALSE),0) -> 0 | I55: 0 | K55: Captain Cook Recreation Site | L55: 3 | M55: 0 | N55: 0
A56: 2013-08-01 | B56: Snow Machining | C56: McCarthy | D56: Snow 53 | F56: 2 | G56: =IFERROR(VLOOKUP(D56,'Study Area Site Variable'!$B$4:$J$1240,6,FALSE),0) -> 0 | H56: =IFERROR(VLOOKUP(D56,'Study Area Site Variable'!$B$4:$H$1240,7,FALSE),0) -> 0 | I56: 0 | K56: Carpenters Lake-Burma Road | L56: 5 | M56: 0 | N56: 0
A57: 2013-08-01 | B57: Snow Machining | C57: Meadow Lakes-Wasilla | D57: Snow 54 | F57: 3 | G57: =IFERROR(VLOOKUP(D57,'Study Area Site Variable'!$B$4:$J$1240,6,FALSE),0) -> 0 | H57: =IFERROR(VLOOKUP(D57,'Study Area Site Variable'!$B$4:$H$1240,7,FALSE),0) -> 0 | I57: 0 | K57: Chandalar Lake-North Fork Chandalar River | L57: 9 | M57: 0 | N57: 0
A58: 2013-08-01 | B58: Snow Machining | C58: Mt. Baldy-Shrock Road | D58: Snow 55 | F58: 10 | G58: =IFERROR(VLOOKUP(D58,'Study Area Site Variable'!$B$4:$J$1240,6,FALSE),0) -> 0 | H58: =IFERROR(VLOOKUP(D58,'Study Area Site Variable'!$B$4:$H$1240,7,FALSE),0) -> 0 | I58: 0 | K58: Chatanika River-Chatanika | L58: 82 | M58: 0 | N58: 0
A59: 2013-08-01 | B59: Snow Machining | C59: Murphy Dome-Murphy Dome Road | D59: Snow 56 | F59: 14 | G59: =IFERROR(VLOOKUP(D59,'Study Area Site Variable'!$B$4:$J$1240,6,FALSE),0) -> 0 | H59: =IFERROR(VLOOKUP(D59,'Study Area Site Variable'!$B$4:$H$1240,7,FALSE),0) -> 0 | I59: 0 | K59: Chatanika River-Whitefish Campground | L59: 18 | M59: 0 | N59: 0
A60: 2013-08-01 | B60: Snow Machining | C60: Nabesna Area | D60: Snow 57 | F60: 3 | G60: =IFERROR(VLOOKUP(D60,'Study Area Site Variable'!$B$4:$J$1240,6,FALSE),0) -> 0 | H60: =IFERROR(VLOOKUP(D60,'Study Area Site Variable'!$B$4:$H$1240,7,FALSE),0) -> 0 | I60: 0 | K60: Chelatna Lake-Float Plane | L60: 5 | M60: 0 | N60: 0
A61: 2013-08-01 | B61: Snow Machining | C61: Nancy Lakes | D61: Snow 58 | F61: 63 | G61: =IFERROR(VLOOKUP(D61,'Study Area Site Variable'!$B$4:$J$1240,6,FALSE),0) -> 1 | H61: =IFERROR(VLOOKUP(D61,'Study Area Site Variable'!$B$4:$H$1240,7,FALSE),0) -> 0 | I61: 0 | K61: Chena Lakes Rec Area-North Pole | L61: 92 | M61: 0 | N61: 0
A62: 2013-08-01 | B62: Snow Machining | C62: Nenana | D62: Snow 59 | F62: 10 | G62: =IFERROR(VLOOKUP(D62,'Study Area Site Variable'!$B$4:$J$1240,6,FALSE),0) -> 0 | H62: =IFERROR(VLOOKUP(D62,'Study Area Site Variable'!$B$4:$H$1240,7,FALSE),0) -> 0 | I62: 0 | K62: Chena River-31.4 Mile | L62: 3 | M62: 0 | N62: 0
A63: 2013-08-01 | B63: Snow Machining | C63: Palmer | D63: Snow 60 | F63: 12 | G63: =IFERROR(VLOOKUP(D63,'Study Area Site Variable'!$B$4:$J$1240,6,FALSE),0) -> 1 | H63: =IFERROR(VLOOKUP(D63,'Study Area Site Variable'!$B$4:$H$1240,7,FALSE),0) -> 0 | I63: 0 | K63: Chena River-Chena | L63: 37 | M63: 5 | N63: 0
A64: 2013-08-01 | B64: Snow Machining | C64: Paxson Lake--Pipeline Access Road | D64: Snow 61 | F64: 4 | G64: =IFERROR(VLOOKUP(D64,'Study Area Site Variable'!$B$4:$J$1240,6,FALSE),0) -> 0 | H64: =IFERROR(VLOOKUP(D64,'Study Area Site Variable'!$B$4:$H$1240,7,FALSE),0) -> 0 | I64: 0 | K64: Chena River-Chena Wayside | L64: 4 | M64: 0 | N64: 0
A65: 2013-08-01 | B65: Snow Machining | C65: Petersville-East Susitna Side | D65: Snow 62 | F65: 4 | G65: =IFERROR(VLOOKUP(D65,'Study Area Site Variable'!$B$4:$J$1240,6,FALSE),0) -> 0 | H65: =IFERROR(VLOOKUP(D65,'Study Area Site Variable'!$B$4:$H$1240,7,FALSE),0) -> 0 | I65: 0 | K65: Chena River-Fairbanks | L65: 346 | M65: 0 | N65: 0
A66: 2013-08-01 | B66: Snow Machining | C66: Petersville-Talkeetna | D66: Snow 63 | F66: 9 | G66: =IFERROR(VLOOKUP(D66,'Study Area Site Variable'!$B$4:$J$1240,6,FALSE),0) -> 0 | H66: =IFERROR(VLOOKUP(D66,'Study Area Site Variable'!$B$4:$H$1240,7,FALSE),0) -> 0 | I66: 0 | K66: Chena River-Flat Creek launch | L66: 1 | M66: 0 | N66: 0
A67: 2013-08-01 | B67: Snow Machining | C67: Petersville-West Susitna Side | D67: Snow 64 | F67: 140 | G67: =IFERROR(VLOOKUP(D67,'Study Area Site Variable'!$B$4:$J$1240,6,FALSE),0) -> 1 | H67: =IFERROR(VLOOKUP(D67,'Study Area Site Variable'!$B$4:$H$1240,7,FALSE),0) -> 0 | I67: 6 | K67: Chena River-Ft. Wainwright | L67: 8 | M67: 0 | N67: 0
A68: 2013-08-01 | B68: Snow Machining | C68: Portage/Placer Rivers | D68: Snow 65 | F68: 21 | G68: =IFERROR(VLOOKUP(D68,'Study Area Site Variable'!$B$4:$J$1240,6,FALSE),0) -> 1 | H68: =IFERROR(VLOOKUP(D68,'Study Area Site Variable'!$B$4:$H$1240,7,FALSE),0) -> 0 | I68: 0 | K68: Chena River-Graehl Landing Fairbanks | L68: 35 | M68: 0 | N68: 0
A69: 2013-08-01 | B69: Snow Machining | C69: Powerline Pass- Glen Alps Anchorage | D69: Snow 66 | F69: 5 | G69: =IFERROR(VLOOKUP(D69,'Study Area Site Variable'!$B$4:$J$1240,6,FALSE),0) -> 0 | H69: =IFERROR(VLOOKUP(D69,'Study Area Site Variable'!$B$4:$H$1240,7,FALSE),0) -> 0 | I69: 0 | K69: chena river-mile 28 Chena Hot Springs Road | L69: 3 | M69: 0 | N69: 0
A70: 2013-08-01 | B70: Snow Machining | C70: Quartz Lake Winter Trail- Valdez | D70: Snow 67 | F70: 4 | G70: =IFERROR(VLOOKUP(D70,'Study Area Site Variable'!$B$4:$J$1240,6,FALSE),0) -> 0 | H70: =IFERROR(VLOOKUP(D70,'Study Area Site Variable'!$B$4:$H$1240,7,FALSE),0) -> 0 | I70: 0 | K70: Chena River-Near Hot Springs Drift (Moose Hunt) | L70: 5 | M70: 0 | N70: 0
A71: 2013-08-01 | B71: Snow Machining | C71: Resurrection Pass Trail-Cooper Landing | D71: Snow 68 | F71: 3 | G71: =IFERROR(VLOOKUP(D71,'Study Area Site Variable'!$B$4:$J$1240,6,FALSE),0) -> 1 | H71: =IFERROR(VLOOKUP(D71,'Study Area Site Variable'!$B$4:$H$1240,7,FALSE),0) -> 0 | I71: 0 | K71: Chena River-Nordale | L71: 47 | M71: 0 | N71: 0
A72: 2013-08-01 | B72: Snow Machining | C72: Rex Trail- Nenana | D72: Snow 69 | F72: 35 | G72: =IFERROR(VLOOKUP(D72,'Study Area Site Variable'!$B$4:$J$1240,6,FALSE),0) -> 1 | H72: =IFERROR(VLOOKUP(D72,'Study Area Site Variable'!$B$4:$H$1240,7,FALSE),0) -> 0 | I72: 0 | K72: Chena River-North Pole | L72: 13 | M72: 0 | N72: 0
A73: 2013-08-01 | B73: Snow Machining | C73: Salcha Winter Trail- Salcha | D73: Snow 70 | F73: 39 | G73: =IFERROR(VLOOKUP(D73,'Study Area Site Variable'!$B$4:$J$1240,6,FALSE),0) -> 1 | H73: =IFERROR(VLOOKUP(D73,'Study Area Site Variable'!$B$4:$H$1240,7,FALSE),0) -> 0 | I73: 0 | K73: Chena River-Peger Road | L73: 4 | M73: 0 | N73: 0
A74: 2013-08-01 | B74: Snow Machining | C74: Sheep Creek-Sheep Creek Lodge | D74: Snow 71 | F74: 10 | G74: =IFERROR(VLOOKUP(D74,'Study Area Site Variable'!$B$4:$J$1240,6,FALSE),0) -> 0 | H74: =IFERROR(VLOOKUP(D74,'Study Area Site Variable'!$B$4:$H$1240,7,FALSE),0) -> 0 | I74: 0 | K74: Chena River-Pikes Landing, Fairbanks | L74: 41 | M74: 0 | N74: 0
A75: 2013-08-01 | B75: Snow Machining | C75: Shishmaref | D75: Snow 72 | F75: 2 | G75: =IFERROR(VLOOKUP(D75,'Study Area Site Variable'!$B$4:$J$1240,6,FALSE),0) -> 0 | H75: =IFERROR(VLOOKUP(D75,'Study Area Site Variable'!$B$4:$H$1240,7,FALSE),0) -> 0 | I75: 0 | K75: Chena River-Pioneer Park Boat Launch | L75: 4 | M75: 0 | N75: 0
A76: 2013-08-01 | B76: Snow Machining | C76: Skwentna | D76: Snow 73 | F76: 1 | G76: =IFERROR(VLOOKUP(D76,'Study Area Site Variable'!$B$4:$J$1240,6,FALSE),0) -> 0 | H76: =IFERROR(VLOOKUP(D76,'Study Area Site Variable'!$B$4:$H$1240,7,FALSE),0) -> 0 | I76: 0 | K76: Chena River-Pump House put in | L76: 5 | M76: 0 | N76: 0
A77: 2013-08-01 | B77: Snow Machining | C77: Skwentna River--Deshka Landing | D77: Snow 74 | F77: 61 | G77: =IFERROR(VLOOKUP(D77,'Study Area Site Variable'!$B$4:$J$1240,6,FALSE),0) -> 1 | H77: =IFERROR(VLOOKUP(D77,'Study Area Site Variable'!$B$4:$H$1240,7,FALSE),0) -> 0 | I77: 0 | K77: Chena River-Small Tracts Launch | L77: 2 | M77: 0 | N77: 0
A78: 2013-08-01 | B78: Snow Machining | C78: Susitna North-Denali | D78: Snow 75 | F78: 3 | G78: =IFERROR(VLOOKUP(D78,'Study Area Site Variable'!$B$4:$J$1240,6,FALSE),0) -> 0 | H78: =IFERROR(VLOOKUP(D78,'Study Area Site Variable'!$B$4:$H$1240,7,FALSE),0) -> 0 | I78: 0 | K78: Chena River-Unspecified | L78: 17 | M78: 0 | N78: 0
A79: 2013-08-01 | B79: Snow Machining | C79: Susitna River (Lower)- West Side Residence | D79: Snow 76 | F79: 2 | G79: =IFERROR(VLOOKUP(D79,'Study Area Site Variable'!$B$4:$J$1240,6,FALSE),0) -> 0 | H79: =IFERROR(VLOOKUP(D79,'Study Area Site Variable'!$B$4:$H$1240,7,FALSE),0) -> 0 | I79: 0 | K79: Chena River-Upper | L79: 15 | M79: 0 | N79: 0
A80: 2013-08-01 | B80: Snow Machining | C80: Susitna River-Deshka Landing | D80: Snow 77 | F80: 36 | G80: =IFERROR(VLOOKUP(D80,'Study Area Site Variable'!$B$4:$J$1240,6,FALSE),0) -> 1 | H80: =IFERROR(VLOOKUP(D80,'Study Area Site Variable'!$B$4:$H$1240,7,FALSE),0) -> 1 | I80: 0 | K80: chena river-wendell st bridge | L80: 1 | M80: 0 | N80: 0
A81: 2013-08-01 | B81: Snow Machining | C81: Susitna River-Susitna Landing | D81: Snow 78 | F81: 4 | G81: =IFERROR(VLOOKUP(D81,'Study Area Site Variable'!$B$4:$J$1240,6,FALSE),0) -> 1 | H81: =IFERROR(VLOOKUP(D81,'Study Area Site Variable'!$B$4:$H$1240,7,FALSE),0) -> 0 | I81: 0 | K81: Chena Slough-Mission Road Crossing | L81: 2 | M81: 0 | N81: 0
A82: 2013-08-01 | B82: Snow Machining | C82: Susitna River-The Preserve | D82: Snow 79 | F82: 8 | G82: =IFERROR(VLOOKUP(D82,'Study Area Site Variable'!$B$4:$J$1240,6,FALSE),0) -> 0 | H82: =IFERROR(VLOOKUP(D82,'Study Area Site Variable'!$B$4:$H$1240,7,FALSE),0) -> 0 | I82: 0 | K82: Cheney Lake-Anchorage | L82: 24 | M82: 0 | N82: 0
A83: 2013-08-01 | B83: Snow Machining | C83: Sutton | D83: Snow 80 | F83: 7 | G83: =IFERROR(VLOOKUP(D83,'Study Area Site Variable'!$B$4:$J$1240,6,FALSE),0) -> 0 | H83: =IFERROR(VLOOKUP(D83,'Study Area Site Variable'!$B$4:$H$1240,7,FALSE),0) -> 0 | I83: 0 | K83: Cheri Lake-Houston | L83: 10 | M83: 0 | N83: 0
A84: 2013-08-01 | B84: Snow Machining | C84: Talkeetna Area-Talkeetna | D84: Snow 81 | F84: 86 | G84: =IFERROR(VLOOKUP(D84,'Study Area Site Variable'!$B$4:$J$1240,6,FALSE),0) -> 1 | H84: =IFERROR(VLOOKUP(D84,'Study Area Site Variable'!$B$4:$H$1240,7,FALSE),0) -> 0 | I84: 18 | K84: Chilkat River-Haines/Klukwan | L84: 20 | M84: 0 | N84: 0
A85: 2013-08-01 | B85: Snow Machining | C85: Tanana Flats-Chena Pump | D85: Snow 82 | F85: 12 | G85: =IFERROR(VLOOKUP(D85,'Study Area Site Variable'!$B$4:$J$1240,6,FALSE),0) -> 0 | H85: =IFERROR(VLOOKUP(D85,'Study Area Site Variable'!$B$4:$H$1240,7,FALSE),0) -> 0 | I85: 0 | K85: Chiniak Bay-Kodiak | L85: 1 | M85: 0 | N85: 0
A86: 2013-08-01 | B86: Snow Machining | C86: Taylor Mountain-Taylor Highway | D86: Snow 83 | F86: 7 | G86: =IFERROR(VLOOKUP(D86,'Study Area Site Variable'!$B$4:$J$1240,6,FALSE),0) -> 0 | H86: =IFERROR(VLOOKUP(D86,'Study Area Site Variable'!$B$4:$H$1240,7,FALSE),0) -> 0 | I86: 0 | K86: Christensen Lake-Talkeetna | L86: 13 | M86: 13 | N86: 0
A87: 2013-08-01 | B87: Snow Machining | C87: Tetlin Refuge | D87: Snow 84 | F87: 6 | G87: =IFERROR(VLOOKUP(D87,'Study Area Site Variable'!$B$4:$J$1240,6,FALSE),0) -> 0 | H87: =IFERROR(VLOOKUP(D87,'Study Area Site Variable'!$B$4:$H$1240,7,FALSE),0) -> 0 | I87: 0 | K87: Chukchi Sea-Kotzebue | L87: 15 | M87: 0 | N87: 0
A88: 2013-08-01 | B88: Snow Machining | C88: Thompson Pass | D88: Snow 85 | F88: 10 | G88: =IFERROR(VLOOKUP(D88,'Study Area Site Variable'!$B$4:$J$1240,6,FALSE),0) -> 1 | H88: =IFERROR(VLOOKUP(D88,'Study Area Site Variable'!$B$4:$H$1240,7,FALSE),0) -> 0 | I88: 0 | K88: Chulitna River,East Fork-Parks Hwy Bridge | L88: 1 | M88: 1 | N88: 0
A89: 2013-08-01 | B89: Snow Machining | C89: Tok Area | D89: Snow 86 | F89: 38 | G89: =IFERROR(VLOOKUP(D89,'Study Area Site Variable'!$B$4:$J$1240,6,FALSE),0) -> 1 | H89: =IFERROR(VLOOKUP(D89,'Study Area Site Variable'!$B$4:$H$1240,7,FALSE),0) -> 0 | I89: 0 | K89: Chulitna River-Denali | L89: 1 | M89: 0 | N89: 0
A90: 2013-08-01 | B90: Snow Machining | C90: Tolovana Hotsprings-Elliot Hwy | D90: Snow 87 | F90: 2 | G90: =IFERROR(VLOOKUP(D90,'Study Area Site Variable'!$B$4:$J$1240,6,FALSE),0) -> 0 | H90: =IFERROR(VLOOKUP(D90,'Study Area Site Variable'!$B$4:$H$1240,7,FALSE),0) -> 0 | I90: 0 | K90: Chulitna River-Float Plane out of Talkeetna | L90: 3 | M90: 0 | N90: 0
A91: 2013-08-01 | B91: Snow Machining | C91: Trading Bay-West Cook Inlet | D91: Snow 88 | F91: 14 | G91: =IFERROR(VLOOKUP(D91,'Study Area Site Variable'!$B$4:$J$1240,6,FALSE),0) -> 0 | H91: =IFERROR(VLOOKUP(D91,'Study Area Site Variable'!$B$4:$H$1240,7,FALSE),0) -> 0 | I91: 0 | K91: Chulitna RIver-Parks Highway | L91: 14 | M91: 3 | N91: 2
A92: 2013-08-01 | B92: Snow Machining | C92: Trapper Creek | D92: Snow 89 | F92: 28 | G92: =IFERROR(VLOOKUP(D92,'Study Area Site Variable'!$B$4:$J$1240,6,FALSE),0) -> 1 | H92: =IFERROR(VLOOKUP(D92,'Study Area Site Variable'!$B$4:$H$1240,7,FALSE),0) -> 0 | I92: 0 | K92: Chulitna River-Troublesome Crek | L92: 4 | M92: 0 | N92: 2
A93: 2013-08-01 | B93: Snow Machining | C93: Turnagain Pass | D93: Snow 90 | F93: 90 | G93: =IFERROR(VLOOKUP(D93,'Study Area Site Variable'!$B$4:$J$1240,6,FALSE),0) -> 1 | H93: =IFERROR(VLOOKUP(D93,'Study Area Site Variable'!$B$4:$H$1240,7,FALSE),0) -> 0 | I93: 0 | K93: Clear Creek-Talkeetna | L93: 2 | M93: 0 | N93: 0
A94: 2013-08-01 | B94: Snow Machining | C94: Uncodeable | D94: Snow 91 | F94: 64 | G94: =IFERROR(VLOOKUP(D94,'Study Area Site Variable'!$B$4:$J$1240,6,FALSE),0) -> 0 | H94: =IFERROR(VLOOKUP(D94,'Study Area Site Variable'!$B$4:$H$1240,7,FALSE),0) -> 0 | I94: 0 | K94: Clearwater Lake-Delta Junction | L94: 15 | M94: 0 | N94: 0
A95: 2013-08-01 | B95: Snow Machining | C95: Wales | D95: Snow 92 | F95: 2 | G95: =IFERROR(VLOOKUP(D95,'Study Area Site Variable'!$B$4:$J$1240,6,FALSE),0) -> 0 | H95: =IFERROR(VLOOKUP(D95,'Study Area Site Variable'!$B$4:$H$1240,7,FALSE),0) -> 0 | I95: 0 | K95: Clearwater River-Clearwater Campground | L95: 14 | M95: 0 | N95: 0
A96: 2013-08-01 | B96: Snow Machining | C96: Wasilla | D96: Snow 93 | F96: 25 | G96: =IFERROR(VLOOKUP(D96,'Study Area Site Variable'!$B$4:$J$1240,6,FALSE),0) -> 1 | H96: =IFERROR(VLOOKUP(D96,'Study Area Site Variable'!$B$4:$H$1240,7,FALSE),0) -> 0 | I96: 0 | K96: Clooney Lake-Anchorage | L96: 1 | M96: 0 | N96: 0
A97: 2013-08-01 | B97: Snow Machining | C97: White Mountain-McKay Creek Area | D97: Snow 94 | F97: 6 | G97: =IFERROR(VLOOKUP(D97,'Study Area Site Variable'!$B$4:$J$1240,6,FALSE),0) -> 0 | H97: =IFERROR(VLOOKUP(D97,'Study Area Site Variable'!$B$4:$H$1240,7,FALSE),0) -> 0 | I97: 0 | K97: Colorado Lake-Broad pass | L97: 7 | M97: 7 | N97: 0
A98: 2013-08-01 | B98: Snow Machining | C98: White Mountains-Wickersham | D98: Snow 95 | F98: 28 | G98: =IFERROR(VLOOKUP(D98,'Study Area Site Variable'!$B$4:$J$1240,6,FALSE),0) -> 1 | H98: =IFERROR(VLOOKUP(D98,'Study Area Site Variable'!$B$4:$H$1240,7,FALSE),0) -> 0 | I98: 0 | K98: Cook Inlet-Anchorage | L98: 5 | M98: 0 | N98: 0
A99: 2013-08-01 | B99: Snow Machining | C99: Whittier | D99: Snow 96 | F99: 11 | G99: =IFERROR(VLOOKUP(D99,'Study Area Site Variable'!$B$4:$J$1240,6,FALSE),0) -> 1 | H99: =IFERROR(VLOOKUP(D99,'Study Area Site Variable'!$B$4:$H$1240,7,FALSE),0) -> 0 | I99: 0 | K99: Cook Inlet-Deep Crek | L99: 5 | M99: 0 | N99: 0
A100: 2013-08-01 | B100: Snow Machining | C100: Willow Area Trails-Willow | D100: Snow 97 | F100: 92 | G100: =IFERROR(VLOOKUP(D100,'Study Area Site Variable'!$B$4:$J$1240,6,FALSE),0) -> 1 | H100: =IFERROR(VLOOKUP(D100,'Study Area Site Variable'!$B$4:$H$1240,7,FALSE),0) -> 0 | I100: 0 | K100: Cook Inlet-Homer | L100: 4 | M100: 0 | N100: 0
A101: 2013-08-01 | B101: Snow Machining | C101: Willow Lakes | D101: Snow 98 | F101: 7 | G101: =IFERROR(VLOOKUP(D101,'Study Area Site Variable'!$B$4:$J$1240,6,FALSE),0) -> 0 | H101: =IFERROR(VLOOKUP(D101,'Study Area Site Variable'!$B$4:$H$1240,7,FALSE),0) -> 0 | I101: 0 | K101: Cook Inlet-Nikiski | L101: 1 | M101: 0 | N101: 0
A102: 2013-08-01 | B102: Snow Machining | C102: Winter Trail-Quartz Lake Access | D102: Snow 99 | F102: 3 | G102: =IFERROR(VLOOKUP(D102,'Study Area Site Variable'!$B$4:$J$1240,6,FALSE),0) -> 0 | H102: =IFERROR(VLOOKUP(D102,'Study Area Site Variable'!$B$4:$H$1240,7,FALSE),0) -> 0 | I102: 0 | K102: Cook Inlet-Seldovia | L102: 12 | M102: 0 | N102: 0
A103: 2013-08-01 | B103: Snow Machining | C103: Yentna to Skwentna-Yentna | D103: Snow 100 | F103: 7 | G103: =IFERROR(VLOOKUP(D103,'Study Area Site Variable'!$B$4:$J$1240,6,FALSE),0) -> 1 | H103: =IFERROR(VLOOKUP(D103,'Study Area Site Variable'!$B$4:$H$1240,7,FALSE),0) -> 0 | I103: 0 | K103: Cook Inlet-Tyonek | L103: 10 | M103: 0 | N103: 0
A104: 2014-05-01 | B104: Snow Machining | C104: 7 Mile Lake Trails-Skilak | D104: Snow 1 | F104: 0 | G104: =IFERROR(VLOOKUP(D104,'Study Area Site Variable'!$B$4:$J$1240,6,FALSE),0) -> 0 | H104: =IFERROR(VLOOKUP(D104,'Study Area Site Variable'!$B$4:$H$1240,7,FALSE),0) -> 0 | I104: 0 | K104: Cook Inlet-Unspecified | L104: 0 | M104: 0 | N104: 0
A105: 2014-05-01 | B105: Snow Machining | C105: Badger Road-North Pole | D105: Snow 2 | F105: 0 | G105: =IFERROR(VLOOKUP(D105,'Study Area Site Variable'!$B$4:$J$1240,6,FALSE),0) -> 0 | H105: =IFERROR(VLOOKUP(D105,'Study Area Site Variable'!$B$4:$H$1240,7,FALSE),0) -> 0 | I105: 0 | K105: Copper lake-Slana | L105: 3 | M105: 0 | N105: 0
A106: 2014-05-01 | B106: Snow Machining | C106: Bethel | D106: Snow 3 | F106: 0 | G106: =IFERROR(VLOOKUP(D106,'Study Area Site Variable'!$B$4:$J$1240,6,FALSE),0) -> 0 | H106: =IFERROR(VLOOKUP(D106,'Study Area Site Variable'!$B$4:$H$1240,7,FALSE),0) -> 0 | I106: 0 | K106: Copper River-Below Gulkana River bridge | L106: 1 | M106: 0 | N106: 0
A107: 2014-05-01 | B107: Snow Machining | C107: Bettles | D107: Snow 4 | F107: 0 | G107: =IFERROR(VLOOKUP(D107,'Study Area Site Variable'!$B$4:$J$1240,6,FALSE),0) -> 0 | H107: =IFERROR(VLOOKUP(D107,'Study Area Site Variable'!$B$4:$H$1240,7,FALSE),0) -> 0 | I107: 0 | K107: Copper River-Chitina | L107: 17 | M107: 0 | N107: 0
A108: 2014-05-01 | B108: Snow Machining | C108: Big Lake | D108: Snow 5 | F108: 20 | G108: =IFERROR(VLOOKUP(D108,'Study Area Site Variable'!$B$4:$J$1240,6,FALSE),0) -> 1 | H108: =IFERROR(VLOOKUP(D108,'Study Area Site Variable'!$B$4:$H$1240,7,FALSE),0) -> 0 | I108: 0 | K108: Copper River-Copper Center | L108: 11 | M108: 0 | N108: 0
A109: 2014-05-01 | B109: Snow Machining | C109: Birch Creek-Steese Highway | D109: Snow 6 | F109: 0 | G109: =IFERROR(VLOOKUP(D109,'Study Area Site Variable'!$B$4:$J$1240,6,FALSE),0) -> 0 | H109: =IFERROR(VLOOKUP(D109,'Study Area Site Variable'!$B$4:$H$1240,7,FALSE),0) -> 0 | I109: 0 | K109: Copper River-New Richardson Bridge | L109: 1 | M109: 0 | N109: 0
A110: 2014-05-01 | B110: Snow Machining | C110: Birch Lake-Delta Junction | D110: Snow 7 | F110: 0 | G110: =IFERROR(VLOOKUP(D110,'Study Area Site Variable'!$B$4:$J$1240,6,FALSE),0) -> 0 | H110: =IFERROR(VLOOKUP(D110,'Study Area Site Variable'!$B$4:$H$1240,7,FALSE),0) -> 0 | I110: 0 | K110: Copper River-Slana, AK | L110: 9 | M110: 0 | N110: 0
A111: 2014-05-01 | B111: Snow Machining | C111: Cache Creek/Ester-Cache Creek | D111: Snow 8 | F111: 0 | G111: =IFERROR(VLOOKUP(D111,'Study Area Site Variable'!$B$4:$J$1240,6,FALSE),0) -> 0 | H111: =IFERROR(VLOOKUP(D111,'Study Area Site Variable'!$B$4:$H$1240,7,FALSE),0) -> 0 | I111: 0 | K111: Copper River-Unspecified | L111: 3 | M111: 0 | N111: 0
A112: 2014-05-01 | B112: Snow Machining | C112: Cantwell | D112: Snow 9 | F112: 52 | G112: =IFERROR(VLOOKUP(D112,'Study Area Site Variable'!$B$4:$J$1240,6,FALSE),0) -> 1 | H112: =IFERROR(VLOOKUP(D112,'Study Area Site Variable'!$B$4:$H$1240,7,FALSE),0) -> 0 | I112: 43 | K112: Cornieleius Lake-Palmer | L112: 6 | M112: 0 | N112: 0
A113: 2014-05-01 | B113: Snow Machining | C113: Canwell Glacier-Miller Creek | D113: Snow 10 | F113: 0 | G113: =IFERROR(VLOOKUP(D113,'Study Area Site Variable'!$B$4:$J$1240,6,FALSE),0) -> 0 | H113: =IFERROR(VLOOKUP(D113,'Study Area Site Variable'!$B$4:$H$1240,7,FALSE),0) -> 0 | I113: 0 | K113: Cottonwood Lake-Private Property | L113: 2 | M113: 0 | N113: 0
A114: 2014-05-01 | B114: Snow Machining | C114: Chatanika-Elliot Highway | D114: Snow 11 | F114: 0 | G114: =IFERROR(VLOOKUP(D114,'Study Area Site Variable'!$B$4:$J$1240,6,FALSE),0) -> 1 | H114: =IFERROR(VLOOKUP(D114,'Study Area Site Variable'!$B$4:$H$1240,7,FALSE),0) -> 0 | I114: 0 | K114: Cottonwood Lake-Wasilla | L114: 63 | M114: 0 | N114: 0
A115: 2014-05-01 | B115: Snow Machining | C115: Chena Flood Control-North Pole | D115: Snow 12 | F115: 0 | G115: =IFERROR(VLOOKUP(D115,'Study Area Site Variable'!$B$4:$J$1240,6,FALSE),0) -> 1 | H115: =IFERROR(VLOOKUP(D115,'Study Area Site Variable'!$B$4:$H$1240,7,FALSE),0) -> 0 | I115: 0 | K115: cranberry lake near big lake-public launch | L115: 8 | M115: 0 | N115: 0
A116: 2014-05-01 | B116: Snow Machining | C116: Chena Hot Springs | D116: Snow 13 | F116: 12 | G116: =IFERROR(VLOOKUP(D116,'Study Area Site Variable'!$B$4:$J$1240,6,FALSE),0) -> 1 | H116: =IFERROR(VLOOKUP(D116,'Study Area Site Variable'!$B$4:$H$1240,7,FALSE),0) -> 0 | I116: 0 | K116: Crator Lake-Tazlina | L116: 5 | M116: 0 | N116: 0
A117: 2014-05-01 | B117: Snow Machining | C117: Chena Lakes-North Pole | D117: Snow 14 | F117: 0 | G117: =IFERROR(VLOOKUP(D117,'Study Area Site Variable'!$B$4:$J$1240,6,FALSE),0) -> 1 | H117: =IFERROR(VLOOKUP(D117,'Study Area Site Variable'!$B$4:$H$1240,7,FALSE),0) -> 0 | I117: 0 | K117: Crooked Lake-Wasilla | L117: 50 | M117: 0 | N117: 0
A118: 2014-05-01 | B118: Snow Machining | C118: Chena River State Recreation Area-North Pole | D118: Snow 15 | F118: 5 | G118: =IFERROR(VLOOKUP(D118,'Study Area Site Variable'!$B$4:$J$1240,6,FALSE),0) -> 1 | H118: =IFERROR(VLOOKUP(D118,'Study Area Site Variable'!$B$4:$H$1240,7,FALSE),0) -> 0 | I118: 0 | K118: Crosswind Lake-Private property | L118: 6 | M118: 0 | N118: 0
A119: 2014-05-01 | B119: Snow Machining | C119: Chickaloon | D119: Snow 16 | F119: 0 | G119: =IFERROR(VLOOKUP(D119,'Study Area Site Variable'!$B$4:$J$1240,6,FALSE),0) -> 0 | H119: =IFERROR(VLOOKUP(D119,'Study Area Site Variable'!$B$4:$H$1240,7,FALSE),0) -> 0 | I119: 0 | K119: Crosswind Lake-Tulsona Glennallen Area | L119: 4 | M119: 0 | N119: 0
A120: 2014-05-01 | B120: Snow Machining | C120: Copper River Valley-Glennallen | D120: Snow 17 | F120: 33 | G120: =IFERROR(VLOOKUP(D120,'Study Area Site Variable'!$B$4:$J$1240,6,FALSE),0) -> 1 | H120: =IFERROR(VLOOKUP(D120,'Study Area Site Variable'!$B$4:$H$1240,7,FALSE),0) -> 0 | I120: 0 | K120: Crystal Lake-private property | L120: 2 | M120: 0 | N120: 0
A121: 2014-05-01 | B121: Snow Machining | C121: Denali Highway-Cantwell | D121: Snow 18 | F121: 7 | G121: =IFERROR(VLOOKUP(D121,'Study Area Site Variable'!$B$4:$J$1240,6,FALSE),0) -> 0 | H121: =IFERROR(VLOOKUP(D121,'Study Area Site Variable'!$B$4:$H$1240,7,FALSE),0) -> 0 | I121: 0 | K121: Crystal Lake-Willow | L121: 33 | M121: 0 | N121: 0
A122: 2014-05-01 | B122: Snow Machining | C122: Denali Highway-Central | D122: Snow 19 | F122: 5 | G122: =IFERROR(VLOOKUP(D122,'Study Area Site Variable'!$B$4:$J$1240,6,FALSE),0) -> 0 | H122: =IFERROR(VLOOKUP(D122,'Study Area Site Variable'!$B$4:$H$1240,7,FALSE),0) -> 0 | I122: 0 | K122: Deep Creek-Mouth | L122: 4 | M122: 0 | N122: 0
A123: 2014-05-01 | B123: Snow Machining | C123: Denali Highway-Paxson | D123: Snow 20 | F123: 35 | G123: =IFERROR(VLOOKUP(D123,'Study Area Site Variable'!$B$4:$J$1240,6,FALSE),0) -> 1 | H123: =IFERROR(VLOOKUP(D123,'Study Area Site Variable'!$B$4:$H$1240,7,FALSE),0) -> 0 | I123: 0 | K123: DeLong Lake-Anchorage | L123: 4 | M123: 0 | N123: 0
A124: 2014-05-01 | B124: Snow Machining | C124: Denali National Park-Cantwell | D124: Snow 21 | F124: 0 | G124: =IFERROR(VLOOKUP(D124,'Study Area Site Variable'!$B$4:$J$1240,6,FALSE),0) -> 0 | H124: =IFERROR(VLOOKUP(D124,'Study Area Site Variable'!$B$4:$H$1240,7,FALSE),0) -> 0 | I124: 0 | K124: Delta Clearwater-Clearwater Lake | L124: 9 | M124: 0 | N124: 0
A125: 2014-05-01 | B125: Snow Machining | C125: Drill Lake-Chickaloon | D125: Snow 22 | F125: 0 | G125: =IFERROR(VLOOKUP(D125,'Study Area Site Variable'!$B$4:$J$1240,6,FALSE),0) -> 1 | H125: =IFERROR(VLOOKUP(D125,'Study Area Site Variable'!$B$4:$H$1240,7,FALSE),0) -> 0 | I125: 0 | K125: Delta Clearwater-Clearwater River | L125: 42 | M125: 0 | N125: 0
A126: 2014-05-01 | B126: Snow Machining | C126: Dry Creek SRA- Gulkana | D126: Snow 23 | F126: 0 | G126: =IFERROR(VLOOKUP(D126,'Study Area Site Variable'!$B$4:$J$1240,6,FALSE),0) -> 0 | H126: =IFERROR(VLOOKUP(D126,'Study Area Site Variable'!$B$4:$H$1240,7,FALSE),0) -> 0 | I126: 0 | K126: Delta River-Richardson Highway | L126: 1 | M126: 0 | N126: 0
A127: 2014-05-01 | B127: Snow Machining | C127: Eagle River Valley | D127: Snow 24 | F127: 0 | G127: =IFERROR(VLOOKUP(D127,'Study Area Site Variable'!$B$4:$J$1240,6,FALSE),0) -> 0 | H127: =IFERROR(VLOOKUP(D127,'Study Area Site Variable'!$B$4:$H$1240,7,FALSE),0) -> 0 | I127: 0 | K127: Delta River-Tangle Lake Campground | L127: 11 | M127: 0 | N127: 0
A128: 2014-05-01 | B128: Snow Machining | C128: Eureka | D128: Snow 25 | F128: 25 | G128: =IFERROR(VLOOKUP(D128,'Study Area Site Variable'!$B$4:$J$1240,6,FALSE),0) -> 1 | H128: =IFERROR(VLOOKUP(D128,'Study Area Site Variable'!$B$4:$H$1240,7,FALSE),0) -> 0 | I128: 0 | K128: Deshka River-Deshka Landing | L128: 28 | M128: 0 | N128: 2
A129: 2014-05-01 | B129: Snow Machining | C129: Eyak Mountain-Cordova | D129: Snow 26 | F129: 0 | G129: =IFERROR(VLOOKUP(D129,'Study Area Site Variable'!$B$4:$J$1240,6,FALSE),0) -> 0 | H129: =IFERROR(VLOOKUP(D129,'Study Area Site Variable'!$B$4:$H$1240,7,FALSE),0) -> 0 | I129: 0 | K129: Doly Varden Lake-Kenai | L129: 1 | M129: 0 | N129: 0
A130: 2014-05-01 | B130: Snow Machining | C130: Fairbanks | D130: Snow 27 | F130: 33 | G130: =IFERROR(VLOOKUP(D130,'Study Area Site Variable'!$B$4:$J$1240,6,FALSE),0) -> 1 | H130: =IFERROR(VLOOKUP(D130,'Study Area Site Variable'!$B$4:$H$1240,7,FALSE),0) -> 0 | I130: 0 | K130: Drashner Lake-Cantwell | L130: 2 | M130: 0 | N130: 0
A131: 2014-05-01 | B131: Snow Machining | C131: Forgotten Lake--Lake Louise | D131: Snow 28 | F131: 0 | G131: =IFERROR(VLOOKUP(D131,'Study Area Site Variable'!$B$4:$J$1240,6,FALSE),0) -> 0 | H131: =IFERROR(VLOOKUP(D131,'Study Area Site Variable'!$B$4:$H$1240,7,FALSE),0) -> 0 | I131: 0 | K131: Drill Lake-Chickaloon | L131: 17 | M131: 0 | N131: 0
A132: 2014-05-01 | B132: Snow Machining | C132: Funny River Road-Kenai | D132: Snow 29 | F132: 0 | G132: =IFERROR(VLOOKUP(D132,'Study Area Site Variable'!$B$4:$J$1240,6,FALSE),0) -> 0 | H132: =IFERROR(VLOOKUP(D132,'Study Area Site Variable'!$B$4:$H$1240,7,FALSE),0) -> 0 | I132: 0 | K132: Dutch Harbor-Dutch Harbor | L132: 6 | M132: 0 | N132: 0
A133: 2014-05-01 | B133: Snow Machining | C133: Gakona | D133: Snow 30 | F133: 3 | G133: =IFERROR(VLOOKUP(D133,'Study Area Site Variable'!$B$4:$J$1240,6,FALSE),0) -> 0 | H133: =IFERROR(VLOOKUP(D133,'Study Area Site Variable'!$B$4:$H$1240,7,FALSE),0) -> 0 | I133: 0 | K133: Eagle RIver-Eagle River | L133: 31 | M133: 0 | N133: 0
A134: 2014-05-01 | B134: Snow Machining | C134: Girdwood | D134: Snow 31 | F134: 0 | G134: =IFERROR(VLOOKUP(D134,'Study Area Site Variable'!$B$4:$J$1240,6,FALSE),0) -> 0 | H134: =IFERROR(VLOOKUP(D134,'Study Area Site Variable'!$B$4:$H$1240,7,FALSE),0) -> 0 | I134: 0 | K134: East Fork Susitna River-Valdez Creek | L134: 2 | M134: 0 | N134: 0
A135: 2014-05-01 | B135: Snow Machining | C135: Gunsight Mountain | D135: Snow 32 | F135: 0 | G135: =IFERROR(VLOOKUP(D135,'Study Area Site Variable'!$B$4:$J$1240,6,FALSE),0) -> 0 | H135: =IFERROR(VLOOKUP(D135,'Study Area Site Variable'!$B$4:$H$1240,7,FALSE),0) -> 0 | I135: 0 | K135: Echo Lake-Anchorage | L135: 13 | M135: 0 | N135: 0
A136: 2014-05-01 | B136: Snow Machining | C136: Harding Lake Trails--Salcha Drive | D136: Snow 33 | F136: 0 | G136: =IFERROR(VLOOKUP(D136,'Study Area Site Variable'!$B$4:$J$1240,6,FALSE),0) -> 0 | H136: =IFERROR(VLOOKUP(D136,'Study Area Site Variable'!$B$4:$H$1240,7,FALSE),0) -> 0 | I136: 0 | K136: Eight Mile Lake-Denali Highway | L136: 1 | M136: 1 | N136: 0
A137: 2014-05-01 | B137: Snow Machining | C137: Hatcher Pass-Palmer Side | D137: Snow 34 | F137: 9 | G137: =IFERROR(VLOOKUP(D137,'Study Area Site Variable'!$B$4:$J$1240,6,FALSE),0) -> 1 | H137: =IFERROR(VLOOKUP(D137,'Study Area Site Variable'!$B$4:$H$1240,7,FALSE),0) -> 0 | I137: 0 | K137: Eklutna Lake-Eklutna Campground | L137: 32 | M137: 0 | N137: 0
A138: 2014-05-01 | B138: Snow Machining | C138: Hatcher Pass-Unspecified | D138: Snow 35 | F138: 1 | G138: =IFERROR(VLOOKUP(D138,'Study Area Site Variable'!$B$4:$J$1240,6,FALSE),0) -> 0 | H138: =IFERROR(VLOOKUP(D138,'Study Area Site Variable'!$B$4:$H$1240,7,FALSE),0) -> 0 | I138: 0 | K138: Eyak River-Boat Launch | L138: 1 | M138: 0 | N138: 0
A139: 2014-05-01 | B139: Snow Machining | C139: Hatcher Pass-Willow Side | D139: Snow 36 | F139: 2 | G139: =IFERROR(VLOOKUP(D139,'Study Area Site Variable'!$B$4:$J$1240,6,FALSE),0) -> 1 | H139: =IFERROR(VLOOKUP(D139,'Study Area Site Variable'!$B$4:$H$1240,7,FALSE),0) -> 0 | I139: 0 | K139: Fielding Lake- Fielding Lake State Recreation Area | L139: 3 | M139: 0 | N139: 0
A140: 2014-05-01 | B140: Snow Machining | C140: Healy Lake--Cummings Rd | D140: Snow 37 | F140: 0 | G140: =IFERROR(VLOOKUP(D140,'Study Area Site Variable'!$B$4:$J$1240,6,FALSE),0) -> 0 | H140: =IFERROR(VLOOKUP(D140,'Study Area Site Variable'!$B$4:$H$1240,7,FALSE),0) -> 0 | I140: 0 | K140: Finger Lake- Finger Lake SRS | L140: 119 | M140: 7 | N140: 0
A141: 2014-05-01 | B141: Snow Machining | C141: Hoodoo Mountains-Paxson | D141: Snow 38 | F141: 28 | G141: =IFERROR(VLOOKUP(D141,'Study Area Site Variable'!$B$4:$J$1240,6,FALSE),0) -> 1 | H141: =IFERROR(VLOOKUP(D141,'Study Area Site Variable'!$B$4:$H$1240,7,FALSE),0) -> 0 | I141: 0 | K141: Finger Lake- Private Property | L141: 10 | M141: 0 | N141: 0
A142: 2014-05-01 | B142: Snow Machining | C142: Houston | D142: Snow 39 | F142: 0 | G142: =IFERROR(VLOOKUP(D142,'Study Area Site Variable'!$B$4:$J$1240,6,FALSE),0) -> 0 | H142: =IFERROR(VLOOKUP(D142,'Study Area Site Variable'!$B$4:$H$1240,7,FALSE),0) -> 0 | I142: 0 | K142: Fire Lake- Eagle River | L142: 24 | M142: 0 | N142: 0
A143: 2014-05-01 | B143: Snow Machining | C143: Johnson Pass-Kenai Peninsula | D143: Snow 40 | F143: 0 | G143: =IFERROR(VLOOKUP(D143,'Study Area Site Variable'!$B$4:$J$1240,6,FALSE),0) -> 0 | H143: =IFERROR(VLOOKUP(D143,'Study Area Site Variable'!$B$4:$H$1240,7,FALSE),0) -> 0 | I143: 0 | K143: Fire Lake- Eagle River Private Residence | L143: 6 | M143: 0 | N143: 0
A144: 2014-05-01 | B144: Snow Machining | C144: Kashwitna River-Eagles Nest | D144: Snow 41 | F144: 0 | G144: =IFERROR(VLOOKUP(D144,'Study Area Site Variable'!$B$4:$J$1240,6,FALSE),0) -> 0 | H144: =IFERROR(VLOOKUP(D144,'Study Area Site Variable'!$B$4:$H$1240,7,FALSE),0) -> 0 | I144: 0 | K144: Flat Lake-Big Lake | L144: 23 | M144: 0 | N144: 0
A145: 2014-05-01 | B145: Snow Machining | C145: Kenai-Unspecified | D145: Snow 42 | F145: 0 | G145: =IFERROR(VLOOKUP(D145,'Study Area Site Variable'!$B$4:$J$1240,6,FALSE),0) -> 0 | H145: =IFERROR(VLOOKUP(D145,'Study Area Site Variable'!$B$4:$H$1240,7,FALSE),0) -> 0 | I145: 0 | K145: Florence Lake-Willow | L145: 10 | M145: 0 | N145: 0
A146: 2014-05-01 | B146: Snow Machining | C146: King River | D146: Snow 43 | F146: 0 | G146: =IFERROR(VLOOKUP(D146,'Study Area Site Variable'!$B$4:$J$1240,6,FALSE),0) -> 1 | H146: =IFERROR(VLOOKUP(D146,'Study Area Site Variable'!$B$4:$H$1240,7,FALSE),0) -> 0 | I146: 0 | K146: Fortymile River South Fork -S Fork boat launch off Taylor Hwy | L146: 6 | M146: 0 | N146: 0
A147: 2014-05-01 | B147: Snow Machining | C147: Klutina Lake | D147: Snow 44 | F147: 0 | G147: =IFERROR(VLOOKUP(D147,'Study Area Site Variable'!$B$4:$J$1240,6,FALSE),0) -> 0 | H147: =IFERROR(VLOOKUP(D147,'Study Area Site Variable'!$B$4:$H$1240,7,FALSE),0) -> 0 | I147: 0 | K147: Gakona River-Richardson Hwy, mile 154 | L147: 2 | M147: 0 | N147: 0
A148: 2014-05-01 | B148: Snow Machining | C148: Knik Goose Bay Road | D148: Snow 45 | F148: 5 | G148: =IFERROR(VLOOKUP(D148,'Study Area Site Variable'!$B$4:$J$1240,6,FALSE),0) -> 0 | H148: =IFERROR(VLOOKUP(D148,'Study Area Site Variable'!$B$4:$H$1240,7,FALSE),0) -> 0 | I148: 0 | K148: Gastineau Channel-Juneau | L148: 2 | M148: 0 | N148: 0
A149: 2014-05-01 | B149: Snow Machining | C149: Knik River | D149: Snow 46 | F149: 3 | G149: =IFERROR(VLOOKUP(D149,'Study Area Site Variable'!$B$4:$J$1240,6,FALSE),0) -> 0 | H149: =IFERROR(VLOOKUP(D149,'Study Area Site Variable'!$B$4:$H$1240,7,FALSE),0) -> 0 | I149: 0 | K149: George Lake-AK Highway Landing East of Tanana River Bridge | L149: 6 | M149: 0 | N149: 0
A150: 2014-05-01 | B150: Snow Machining | C150: Lake Louise | D150: Snow 47 | F150: 100 | G150: =IFERROR(VLOOKUP(D150,'Study Area Site Variable'!$B$4:$J$1240,6,FALSE),0) -> 1 | H150: =IFERROR(VLOOKUP(D150,'Study Area Site Variable'!$B$4:$H$1240,7,FALSE),0) -> 0 | I150: 65 | K150: Glacier Creek-Girdwood | L150: 3 | M150: 0 | N150: 0
A151: 2014-05-01 | B151: Snow Machining | C151: Long Lake--Willow | D151: Snow 48 | F151: 1 | G151: =IFERROR(VLOOKUP(D151,'Study Area Site Variable'!$B$4:$J$1240,6,FALSE),0) -> 0 | H151: =IFERROR(VLOOKUP(D151,'Study Area Site Variable'!$B$4:$H$1240,7,FALSE),0) -> 0 | I151: 0 | K151: Good Paster River-Tanana River Boat Launch | L151: 8 | M151: 0 | N151: 0
A152: 2014-05-01 | B152: Snow Machining | C152: Loss Lake--Cooper Landing | D152: Snow 49 | F152: 0 | G152: =IFERROR(VLOOKUP(D152,'Study Area Site Variable'!$B$4:$J$1240,6,FALSE),0) -> 0 | H152: =IFERROR(VLOOKUP(D152,'Study Area Site Variable'!$B$4:$H$1240,7,FALSE),0) -> 0 | I152: 0 | K152: Good Pasture-Delta Bridge | L152: 7 | M152: 0 | N152: 0
A153: 2014-05-01 | B153: Snow Machining | C153: Lost Lake Trail-Seward | D153: Snow 50 | F153: 2 | G153: =IFERROR(VLOOKUP(D153,'Study Area Site Variable'!$B$4:$J$1240,6,FALSE),0) -> 1 | H153: =IFERROR(VLOOKUP(D153,'Study Area Site Variable'!$B$4:$H$1240,7,FALSE),0) -> 0 | I153: 0 | K153: Goodnews Lake-Dillingham | L153: 14 | M153: 0 | N153: 0
A154: 2014-05-01 | B154: Snow Machining | C154: Manley Hot Springs | D154: Snow 51 | F154: 0 | G154: =IFERROR(VLOOKUP(D154,'Study Area Site Variable'!$B$4:$J$1240,6,FALSE),0) -> 1 | H154: =IFERROR(VLOOKUP(D154,'Study Area Site Variable'!$B$4:$H$1240,7,FALSE),0) -> 0 | I154: 0 | K154: Goodpaster River-Big Delta boat launch | L154: 10 | M154: 0 | N154: 0
A155: 2014-05-01 | B155: Snow Machining | C155: Matanuska River | D155: Snow 52 | F155: 0 | G155: =IFERROR(VLOOKUP(D155,'Study Area Site Variable'!$B$4:$J$1240,6,FALSE),0) -> 0 | H155: =IFERROR(VLOOKUP(D155,'Study Area Site Variable'!$B$4:$H$1240,7,FALSE),0) -> 0 | I155: 0 | K155: Goose Lake-Anchorage | L155: 2 | M155: 0 | N155: 0
A156: 2014-05-01 | B156: Snow Machining | C156: McCarthy | D156: Snow 53 | F156: 0 | G156: =IFERROR(VLOOKUP(D156,'Study Area Site Variable'!$B$4:$J$1240,6,FALSE),0) -> 0 | H156: =IFERROR(VLOOKUP(D156,'Study Area Site Variable'!$B$4:$H$1240,7,FALSE),0) -> 0 | I156: 0 | K156: Granite Creek-Kenai | L156: 1 | M156: 0 | N156: 0
A157: 2014-05-01 | B157: Snow Machining | C157: Meadow Lakes-Wasilla | D157: Snow 54 | F157: 0 | G157: =IFERROR(VLOOKUP(D157,'Study Area Site Variable'!$B$4:$J$1240,6,FALSE),0) -> 0 | H157: =IFERROR(VLOOKUP(D157,'Study Area Site Variable'!$B$4:$H$1240,7,FALSE),0) -> 0 | I157: 0 | K157: Gravel Lake-Salcha | L157: 2 | M157: 0 | N157: 0
A158: 2014-05-01 | B158: Snow Machining | C158: Mt. Baldy-Shrock Road | D158: Snow 55 | F158: 0 | G158: =IFERROR(VLOOKUP(D158,'Study Area Site Variable'!$B$4:$J$1240,6,FALSE),0) -> 0 | H158: =IFERROR(VLOOKUP(D158,'Study Area Site Variable'!$B$4:$H$1240,7,FALSE),0) -> 0 | I158: 0 | K158: Gulf of Alaska | L158: 64 | M158: 0 | N158: 0
A159: 2014-05-01 | B159: Snow Machining | C159: Murphy Dome-Murphy Dome Road | D159: Snow 56 | F159: 0 | G159: =IFERROR(VLOOKUP(D159,'Study Area Site Variable'!$B$4:$J$1240,6,FALSE),0) -> 0 | H159: =IFERROR(VLOOKUP(D159,'Study Area Site Variable'!$B$4:$H$1240,7,FALSE),0) -> 0 | I159: 0 | K159: Gulf of Alaska-Juneau | L159: 4 | M159: 0 | N159: 0
A160: 2014-05-01 | B160: Snow Machining | C160: Nabesna Area | D160: Snow 57 | F160: 0 | G160: =IFERROR(VLOOKUP(D160,'Study Area Site Variable'!$B$4:$J$1240,6,FALSE),0) -> 0 | H160: =IFERROR(VLOOKUP(D160,'Study Area Site Variable'!$B$4:$H$1240,7,FALSE),0) -> 0 | I160: 0 | K160: Gulf of Alaska-Sand Point | L160: 5 | M160: 0 | N160: 0
A161: 2014-05-01 | B161: Snow Machining | C161: Nancy Lakes | D161: Snow 58 | F161: 1 | G161: =IFERROR(VLOOKUP(D161,'Study Area Site Variable'!$B$4:$J$1240,6,FALSE),0) -> 1 | H161: =IFERROR(VLOOKUP(D161,'Study Area Site Variable'!$B$4:$H$1240,7,FALSE),0) -> 0 | I161: 0 | K161: Gulf of Alaska-Whittier | L161: 1 | M161: 0 | N161: 0
A162: 2014-05-01 | B162: Snow Machining | C162: Nenana | D162: Snow 59 | F162: 3 | G162: =IFERROR(VLOOKUP(D162,'Study Area Site Variable'!$B$4:$J$1240,6,FALSE),0) -> 0 | H162: =IFERROR(VLOOKUP(D162,'Study Area Site Variable'!$B$4:$H$1240,7,FALSE),0) -> 0 | I162: 0 | K162: Gulkana River-Gakona | L162: 3 | M162: 0 | N162: 0
A163: 2014-05-01 | B163: Snow Machining | C163: Palmer | D163: Snow 60 | F163: 48 | G163: =IFERROR(VLOOKUP(D163,'Study Area Site Variable'!$B$4:$J$1240,6,FALSE),0) -> 1 | H163: =IFERROR(VLOOKUP(D163,'Study Area Site Variable'!$B$4:$H$1240,7,FALSE),0) -> 0 | I163: 0 | K163: Gulkana River-Glenallen | L163: 5 | M163: 0 | N163: 0
A164: 2014-05-01 | B164: Snow Machining | C164: Paxson Lake--Pipeline Access Road | D164: Snow 61 | F164: 0 | G164: =IFERROR(VLOOKUP(D164,'Study Area Site Variable'!$B$4:$J$1240,6,FALSE),0) -> 0 | H164: =IFERROR(VLOOKUP(D164,'Study Area Site Variable'!$B$4:$H$1240,7,FALSE),0) -> 0 | I164: 0 | K164: Gulkana River-Gulkana | L164: 7 | M164: 0 | N164: 0
A165: 2014-05-01 | B165: Snow Machining | C165: Petersville-East Susitna Side | D165: Snow 62 | F165: 0 | G165: =IFERROR(VLOOKUP(D165,'Study Area Site Variable'!$B$4:$J$1240,6,FALSE),0) -> 0 | H165: =IFERROR(VLOOKUP(D165,'Study Area Site Variable'!$B$4:$H$1240,7,FALSE),0) -> 0 | I165: 0 | K165: gulkana river-paxson | L165: 6 | M165: 0 | N165: 0
A166: 2014-05-01 | B166: Snow Machining | C166: Petersville-Talkeetna | D166: Snow 63 | F166: 2 | G166: =IFERROR(VLOOKUP(D166,'Study Area Site Variable'!$B$4:$J$1240,6,FALSE),0) -> 0 | H166: =IFERROR(VLOOKUP(D166,'Study Area Site Variable'!$B$4:$H$1240,7,FALSE),0) -> 0 | I166: 0 | K166: Gulkana River-Paxson Lake | L166: 46 | M166: 0 | N166: 0
A167: 2014-05-01 | B167: Snow Machining | C167: Petersville-West Susitna Side | D167: Snow 64 | F167: 203 | G167: =IFERROR(VLOOKUP(D167,'Study Area Site Variable'!$B$4:$J$1240,6,FALSE),0) -> 1 | H167: =IFERROR(VLOOKUP(D167,'Study Area Site Variable'!$B$4:$H$1240,7,FALSE),0) -> 0 | I167: 59 | K167: Gulkana River-Poplar grove, Richardson Hwy | L167: 1 | M167: 0 | N167: 0
A168: 2014-05-01 | B168: Snow Machining | C168: Portage/Placer Rivers | D168: Snow 65 | F168: 4 | G168: =IFERROR(VLOOKUP(D168,'Study Area Site Variable'!$B$4:$J$1240,6,FALSE),0) -> 1 | H168: =IFERROR(VLOOKUP(D168,'Study Area Site Variable'!$B$4:$H$1240,7,FALSE),0) -> 0 | I168: 0 | K168: Gulkana River-Sailor's Pit | L168: 9 | M168: 0 | N168: 0
A169: 2014-05-01 | B169: Snow Machining | C169: Powerline Pass- Glen Alps Anchorage | D169: Snow 66 | F169: 0 | G169: =IFERROR(VLOOKUP(D169,'Study Area Site Variable'!$B$4:$J$1240,6,FALSE),0) -> 0 | H169: =IFERROR(VLOOKUP(D169,'Study Area Site Variable'!$B$4:$H$1240,7,FALSE),0) -> 0 | I169: 0 | K169: Gulkana River-Sourdough BLM | L169: 30 | M169: 0 | N169: 0
A170: 2014-05-01 | B170: Snow Machining | C170: Quartz Lake Winter Trail- Valdez | D170: Snow 67 | F170: 0 | G170: =IFERROR(VLOOKUP(D170,'Study Area Site Variable'!$B$4:$J$1240,6,FALSE),0) -> 0 | H170: =IFERROR(VLOOKUP(D170,'Study Area Site Variable'!$B$4:$H$1240,7,FALSE),0) -> 0 | I170: 0 | K170: gulkana river-summit lake | L170: 9 | M170: 0 | N170: 0
A171: 2014-05-01 | B171: Snow Machining | C171: Resurrection Pass Trail-Cooper Landing | D171: Snow 68 | F171: 0 | G171: =IFERROR(VLOOKUP(D171,'Study Area Site Variable'!$B$4:$J$1240,6,FALSE),0) -> 1 | H171: =IFERROR(VLOOKUP(D171,'Study Area Site Variable'!$B$4:$H$1240,7,FALSE),0) -> 0 | I171: 0 | K171: Halibut Cove-Halibut Cove | L171: 2 | M171: 0 | N171: 0
A172: 2014-05-01 | B172: Snow Machining | C172: Rex Trail- Nenana | D172: Snow 69 | F172: 0 | G172: =IFERROR(VLOOKUP(D172,'Study Area Site Variable'!$B$4:$J$1240,6,FALSE),0) -> 1 | H172: =IFERROR(VLOOKUP(D172,'Study Area Site Variable'!$B$4:$H$1240,7,FALSE),0) -> 0 | I172: 0 | K172: Happy River-Fly-in | L172: 8 | M172: 0 | N172: 0
A173: 2014-05-01 | B173: Snow Machining | C173: Salcha Winter Trail- Salcha | D173: Snow 70 | F173: 0 | G173: =IFERROR(VLOOKUP(D173,'Study Area Site Variable'!$B$4:$J$1240,6,FALSE),0) -> 1 | H173: =IFERROR(VLOOKUP(D173,'Study Area Site Variable'!$B$4:$H$1240,7,FALSE),0) -> 0 | I173: 0 | K173: Harding Lake-Fairbanks | L173: 185 | M173: 0 | N173: 0
A174: 2014-05-01 | B174: Snow Machining | C174: Sheep Creek-Sheep Creek Lodge | D174: Snow 71 | F174: 0 | G174: =IFERROR(VLOOKUP(D174,'Study Area Site Variable'!$B$4:$J$1240,6,FALSE),0) -> 0 | H174: =IFERROR(VLOOKUP(D174,'Study Area Site Variable'!$B$4:$H$1240,7,FALSE),0) -> 0 | I174: 0 | K174: Healy Lake-Cummings Rd | L174: 4 | M174: 0 | N174: 0
A175: 2014-05-01 | B175: Snow Machining | C175: Shishmaref | D175: Snow 72 | F175: 0 | G175: =IFERROR(VLOOKUP(D175,'Study Area Site Variable'!$B$4:$J$1240,6,FALSE),0) -> 0 | H175: =IFERROR(VLOOKUP(D175,'Study Area Site Variable'!$B$4:$H$1240,7,FALSE),0) -> 0 | I175: 0 | K175: Healy Lake-Unspecified | L175: 0 | M175: 0 | N175: 0
A176: 2014-05-01 | B176: Snow Machining | C176: Skwentna | D176: Snow 73 | F176: 0 | G176: =IFERROR(VLOOKUP(D176,'Study Area Site Variable'!$B$4:$J$1240,6,FALSE),0) -> 0 | H176: =IFERROR(VLOOKUP(D176,'Study Area Site Variable'!$B$4:$H$1240,7,FALSE),0) -> 0 | I176: 0 | K176: Hidden Lake-Cooper Landing | L176: 3 | M176: 0 | N176: 0
A177: 2014-05-01 | B177: Snow Machining | C177: Skwentna River--Deshka Landing | D177: Snow 74 | F177: 5 | G177: =IFERROR(VLOOKUP(D177,'Study Area Site Variable'!$B$4:$J$1240,6,FALSE),0) -> 1 | H177: =IFERROR(VLOOKUP(D177,'Study Area Site Variable'!$B$4:$H$1240,7,FALSE),0) -> 0 | I177: 0 | K177: Hidden Lake-Kenai | L177: 4 | M177: 0 | N177: 0
A178: 2014-05-01 | B178: Snow Machining | C178: Susitna North-Denali | D178: Snow 75 | F178: 0 | G178: =IFERROR(VLOOKUP(D178,'Study Area Site Variable'!$B$4:$J$1240,6,FALSE),0) -> 0 | H178: =IFERROR(VLOOKUP(D178,'Study Area Site Variable'!$B$4:$H$1240,7,FALSE),0) -> 0 | I178: 0 | K178: High Lake-Personal dock | L178: 2 | M178: 2 | N178: 0
A179: 2014-05-01 | B179: Snow Machining | C179: Susitna River (Lower)- West Side Residence | D179: Snow 76 | F179: 0 | G179: =IFERROR(VLOOKUP(D179,'Study Area Site Variable'!$B$4:$J$1240,6,FALSE),0) -> 0 | H179: =IFERROR(VLOOKUP(D179,'Study Area Site Variable'!$B$4:$H$1240,7,FALSE),0) -> 0 | I179: 0 | K179: Honeybee Lake-Willow | L179: 20 | M179: 0 | N179: 0
A180: 2014-05-01 | B180: Snow Machining | C180: Susitna River-Deshka Landing | D180: Snow 77 | F180: 0 | G180: =IFERROR(VLOOKUP(D180,'Study Area Site Variable'!$B$4:$J$1240,6,FALSE),0) -> 1 | H180: =IFERROR(VLOOKUP(D180,'Study Area Site Variable'!$B$4:$H$1240,7,FALSE),0) -> 1 | I180: 0 | K180: Horseshoe Lake-Houston | L180: 8 | M180: 0 | N180: 0
A181: 2014-05-01 | B181: Snow Machining | C181: Susitna River-Susitna Landing | D181: Snow 78 | F181: 0 | G181: =IFERROR(VLOOKUP(D181,'Study Area Site Variable'!$B$4:$J$1240,6,FALSE),0) -> 1 | H181: =IFERROR(VLOOKUP(D181,'Study Area Site Variable'!$B$4:$H$1240,7,FALSE),0) -> 0 | I181: 0 | K181: Hulahula River-Walked from Sadlerochit River | L181: 1 | M181: 0 | N181: 0
A182: 2014-05-01 | B182: Snow Machining | C182: Susitna River-The Preserve | D182: Snow 79 | F182: 0 | G182: =IFERROR(VLOOKUP(D182,'Study Area Site Variable'!$B$4:$J$1240,6,FALSE),0) -> 0 | H182: =IFERROR(VLOOKUP(D182,'Study Area Site Variable'!$B$4:$H$1240,7,FALSE),0) -> 0 | I182: 0 | K182: Icy Straits-Hoonah | L182: 3 | M182: 0 | N182: 0
A183: 2014-05-01 | B183: Snow Machining | C183: Sutton | D183: Snow 80 | F183: 0 | G183: =IFERROR(VLOOKUP(D183,'Study Area Site Variable'!$B$4:$J$1240,6,FALSE),0) -> 0 | H183: =IFERROR(VLOOKUP(D183,'Study Area Site Variable'!$B$4:$H$1240,7,FALSE),0) -> 0 | I183: 0 | K183: Ingram Creek-Seward Hwy | L183: 1 | M183: 0 | N183: 0
A184: 2014-05-01 | B184: Snow Machining | C184: Talkeetna Area-Talkeetna | D184: Snow 81 | F184: 82 | G184: =IFERROR(VLOOKUP(D184,'Study Area Site Variable'!$B$4:$J$1240,6,FALSE),0) -> 1 | H184: =IFERROR(VLOOKUP(D184,'Study Area Site Variable'!$B$4:$H$1240,7,FALSE),0) -> 0 | I184: 75 | K184: Innoko River-Shageluk | L184: 10 | M184: 0 | N184: 0
A185: 2014-05-01 | B185: Snow Machining | C185: Tanana Flats-Chena Pump | D185: Snow 82 | F185: 0 | G185: =IFERROR(VLOOKUP(D185,'Study Area Site Variable'!$B$4:$J$1240,6,FALSE),0) -> 0 | H185: =IFERROR(VLOOKUP(D185,'Study Area Site Variable'!$B$4:$H$1240,7,FALSE),0) -> 0 | I185: 0 | K185: Inside Passage-Cruise Ship Vancouver | L185: 8 | M185: 0 | N185: 0
A186: 2014-05-01 | B186: Snow Machining | C186: Taylor Mountain-Taylor Highway | D186: Snow 83 | F186: 0 | G186: =IFERROR(VLOOKUP(D186,'Study Area Site Variable'!$B$4:$J$1240,6,FALSE),0) -> 0 | H186: =IFERROR(VLOOKUP(D186,'Study Area Site Variable'!$B$4:$H$1240,7,FALSE),0) -> 0 | I186: 0 | K186: J.H. Lake-Kantishna River | L186: 6 | M186: 0 | N186: 0
A187: 2014-05-01 | B187: Snow Machining | C187: Tetlin Refuge | D187: Snow 84 | F187: 0 | G187: =IFERROR(VLOOKUP(D187,'Study Area Site Variable'!$B$4:$J$1240,6,FALSE),0) -> 0 | H187: =IFERROR(VLOOKUP(D187,'Study Area Site Variable'!$B$4:$H$1240,7,FALSE),0) -> 0 | I187: 0 | K187: Jack River-Cantwell | L187: 7 | M187: 1 | N187: 0
A188: 2014-05-01 | B188: Snow Machining | C188: Thompson Pass | D188: Snow 85 | F188: 6 | G188: =IFERROR(VLOOKUP(D188,'Study Area Site Variable'!$B$4:$J$1240,6,FALSE),0) -> 1 | H188: =IFERROR(VLOOKUP(D188,'Study Area Site Variable'!$B$4:$H$1240,7,FALSE),0) -> 0 | I188: 0 | K188: Jewel Lake-Anchorage | L188: 13 | M188: 0 | N188: 0
A189: 2014-05-01 | B189: Snow Machining | C189: Tok Area | D189: Snow 86 | F189: 17 | G189: =IFERROR(VLOOKUP(D189,'Study Area Site Variable'!$B$4:$J$1240,6,FALSE),0) -> 1 | H189: =IFERROR(VLOOKUP(D189,'Study Area Site Variable'!$B$4:$H$1240,7,FALSE),0) -> 0 | I189: 0 | K189: Jim Creek-Mat Su | L189: 7 | M189: 0 | N189: 0
A190: 2014-05-01 | B190: Snow Machining | C190: Tolovana Hotsprings-Elliot Hwy | D190: Snow 87 | F190: 0 | G190: =IFERROR(VLOOKUP(D190,'Study Area Site Variable'!$B$4:$J$1240,6,FALSE),0) -> 0 | H190: =IFERROR(VLOOKUP(D190,'Study Area Site Variable'!$B$4:$H$1240,7,FALSE),0) -> 0 | I190: 0 | K190: Kachemak Bay- Homer | L190: 385 | M190: 0 | N190: 0
A191: 2014-05-01 | B191: Snow Machining | C191: Trading Bay-West Cook Inlet | D191: Snow 88 | F191: 0 | G191: =IFERROR(VLOOKUP(D191,'Study Area Site Variable'!$B$4:$J$1240,6,FALSE),0) -> 0 | H191: =IFERROR(VLOOKUP(D191,'Study Area Site Variable'!$B$4:$H$1240,7,FALSE),0) -> 0 | I191: 0 | K191: Kachemak Bay-Seldovia | L191: 19 | M191: 0 | N191: 0
A192: 2014-05-01 | B192: Snow Machining | C192: Trapper Creek | D192: Snow 89 | F192: 70 | G192: =IFERROR(VLOOKUP(D192,'Study Area Site Variable'!$B$4:$J$1240,6,FALSE),0) -> 1 | H192: =IFERROR(VLOOKUP(D192,'Study Area Site Variable'!$B$4:$H$1240,7,FALSE),0) -> 0 | I192: 20 | K192: Kake-SE Alaska | L192: 3 | M192: 0 | N192: 0
A193: 2014-05-01 | B193: Snow Machining | C193: Turnagain Pass | D193: Snow 90 | F193: 20 | G193: =IFERROR(VLOOKUP(D193,'Study Area Site Variable'!$B$4:$J$1240,6,FALSE),0) -> 1 | H193: =IFERROR(VLOOKUP(D193,'Study Area Site Variable'!$B$4:$H$1240,7,FALSE),0) -> 0 | I193: 3 | K193: Kaktovik Lagoon-crossed to Barter Island, narrowest point | L193: 1 | M193: 0 | N193: 0
A194: 2014-05-01 | B194: Snow Machining | C194: Uncodeable | D194: Snow 91 | F194: 5 | G194: =IFERROR(VLOOKUP(D194,'Study Area Site Variable'!$B$4:$J$1240,6,FALSE),0) -> 0 | H194: =IFERROR(VLOOKUP(D194,'Study Area Site Variable'!$B$4:$H$1240,7,FALSE),0) -> 0 | I194: 3 | K194: Kalmbach Lake-Wasilla | L194: 2 | M194: 0 | N194: 0
A195: 2014-05-01 | B195: Snow Machining | C195: Wales | D195: Snow 92 | F195: 0 | G195: =IFERROR(VLOOKUP(D195,'Study Area Site Variable'!$B$4:$J$1240,6,FALSE),0) -> 0 | H195: =IFERROR(VLOOKUP(D195,'Study Area Site Variable'!$B$4:$H$1240,7,FALSE),0) -> 0 | I195: 0 | K195: Kasilof River-Sterling Highway | L195: 1 | M195: 0 | N195: 0
A196: 2014-05-01 | B196: Snow Machining | C196: Wasilla | D196: Snow 93 | F196: 1 | G196: =IFERROR(VLOOKUP(D196,'Study Area Site Variable'!$B$4:$J$1240,6,FALSE),0) -> 1 | H196: =IFERROR(VLOOKUP(D196,'Study Area Site Variable'!$B$4:$H$1240,7,FALSE),0) -> 0 | I196: 0 | K196: Katie Lake-Talkeetna | L196: 32 | M196: 0 | N196: 0
A197: 2014-05-01 | B197: Snow Machining | C197: White Mountain-McKay Creek Area | D197: Snow 94 | F197: 0 | G197: =IFERROR(VLOOKUP(D197,'Study Area Site Variable'!$B$4:$J$1240,6,FALSE),0) -> 0 | H197: =IFERROR(VLOOKUP(D197,'Study Area Site Variable'!$B$4:$H$1240,7,FALSE),0) -> 0 | I197: 0 | K197: Katmai-Saboniski Loop | L197: 8 | M197: 0 | N197: 0
A198: 2014-05-01 | B198: Snow Machining | C198: White Mountains-Wickersham | D198: Snow 95 | F198: 0 | G198: =IFERROR(VLOOKUP(D198,'Study Area Site Variable'!$B$4:$J$1240,6,FALSE),0) -> 1 | H198: =IFERROR(VLOOKUP(D198,'Study Area Site Variable'!$B$4:$H$1240,7,FALSE),0) -> 0 | I198: 0 | K198: Kelly Lake-Kenai | L198: 3 | M198: 0 | N198: 0
A199: 2014-05-01 | B199: Snow Machining | C199: Whittier | D199: Snow 96 | F199: 5 | G199: =IFERROR(VLOOKUP(D199,'Study Area Site Variable'!$B$4:$J$1240,6,FALSE),0) -> 1 | H199: =IFERROR(VLOOKUP(D199,'Study Area Site Variable'!$B$4:$H$1240,7,FALSE),0) -> 0 | I199: 0 | K199: Kenai Canoe Trails-Swanson River | L199: 3 | M199: 0 | N199: 0
A200: 2014-05-01 | B200: Snow Machining | C200: Willow Area Trails-Willow | D200: Snow 97 | F200: 48 | G200: =IFERROR(VLOOKUP(D200,'Study Area Site Variable'!$B$4:$J$1240,6,FALSE),0) -> 1 | H200: =IFERROR(VLOOKUP(D200,'Study Area Site Variable'!$B$4:$H$1240,7,FALSE),0) -> 0 | I200: 0 | K200: Kenai Lake-Cooper Landing | L200: 63 | M200: 0 | N200: 0
A201: 2014-05-01 | B201: Snow Machining | C201: Willow Lakes | D201: Snow 98 | F201: 0 | G201: =IFERROR(VLOOKUP(D201,'Study Area Site Variable'!$B$4:$J$1240,6,FALSE),0) -> 0 | H201: =IFERROR(VLOOKUP(D201,'Study Area Site Variable'!$B$4:$H$1240,7,FALSE),0) -> 0 | I201: 0 | K201: Kenai Lake-Quartz Creek | L201: 1 | M201: 0 | N201: 0
... 1799 more rows

Sheet Study Area Site Variable
A3: Activity | B3: Location_Code | C3: site_name | D3: TripsPerSite | E3: Number_Recreators | F3: wave | G3: AnalysisSite | H3: PolicySite | I3: latitude | J3: longitude
A4: Fishing | B4: Area A-H | C4: Area A-H | D4: 243 | E4: 37 | F4: Waves 1 and 2 | G4: 0
A5: Boating | B5: BTNG 1 | C5: 20 Mile River-Boat Launch | D5: 14 | E5: 6 | F5: Waves 1 and 2 | G5: 1 | H5: 0 | I5: 60.84579849 | J5: -148.9915161 | M5: Row Labels | N5: Sum of PolicySite
A6: Boating | B6: BTNG 100 | C6: Kenai River-Unspecified | D6: 12 | E6: 7 | F6: Waves 1 and 2 | M6: Boating | N6: 9
A7: Boating | B7: BTNG 101 | C7: Kenai River-Upper | D7: 67 | E7: 27 | F7: Waves 1 and 2 | G7: 1 | H7: 0 | I7: 60.49259949 | J7: -149.8226166 | M7: Fishing | N7: 7
A8: Boating | B8: BTNG 103 | C8: Ketchikan Saltwater | D8: 10 | E8: 1 | F8: Wave 1 | G8: 0 | M8: Hunting | N8: 44
A9: Boating | B9: BTNG 104 | C9: King Creek-Nenana | D9: 3 | E9: 1 | F9: Wave 1 | G9: 0 | M9: Snowmachine | N9: 1
A10: Boating | B10: BTNG 105 | C10: Knik Lake | D10: 4 | E10: 2 | F10: Wave 1 | G10: 0 | M10: Grand Total | N10: 61
A11: Boating | B11: BTNG 106 | C11: Knik River to Glacier-Knik River Access | D11: 20 | E11: 8 | F11: Waves 1 and 2 | G11: 1 | H11: 0 | I11: 61.50862122 | J11: -148.9952087
A12: Boating | B12: BTNG 107 | C12: Kodiak | D12: 8 | E12: 2 | F12: Waves 1 and 2
A13: Boating | B13: BTNG 108 | C13: Kongakut River-Fairbanks by Air | D13: 17 | E13: 1 | F13: Wave 1 | G13: 0
A14: Boating | B14: BTNG 109 | C14: Koyukuk River-Bettles | D14: 5 | E14: 1 | F14: Wave 1 | G14: 0
A15: Boating | B15: BTNG 11 | C15: Beaver Creek-Ophir | D15: 9 | E15: 1 | F15: Wave 1 | G15: 0
A16: Boating | B16: BTNG 110 | C16: Koyukuk River-Unspecified | D16: 15 | E16: 1 | F16: Wave 1 | G16: 0 | I16: 65.67774 | J16: -156.33869
A17: Boating | B17: BTNG 111 | C17: Kroto Creek-Petersville | D17: 1 | E17: 1 | F17: Wave 1 | G17: 0
A18: Boating | B18: BTNG 112 | C18: Kuskokwim River-Bethel | D18: 12 | E18: 1 | F18: Wave 1 | G18: 0
A19: Boating | B19: BTNG 113 | C19: Lake Louise | D19: 93 | E19: 24 | F19: Waves 1 and 2 | G19: 1 | H19: 0 | I19: 62.2878685 | J19: -146.5417023
A20: Boating | B20: BTNG 114 | C20: Lake September-Trapper Creek | D20: 3 | E20: 1 | F20: Wave 1 | G20: 0
A21: Boating | B21: BTNG 116 | C21: Little Su-Houston | D21: 8 | E21: 3 | F21: Waves 1 and 2 | G21: 1 | H21: 0 | I21: 61.62820053 | J21: -149.8131714
A22: Boating | B22: BTNG 117 | C22: Little Su-LSPUF | D22: 11 | E22: 4 | F22: Wave 1 | G22: 1 | H22: 0 | I22: 61.43746185 | J22: -150.174408
A23: Boating | B23: BTNG 118 | C23: Little Willow Creek-Willow | D23: 2 | E23: 1 | F23: Wave 1 | G23: 0
A24: Boating | B24: BTNG 119 | C24: Local Lakes-Mile 111-122 Glenn Hwy | D24: 5 | E24: 1 | F24: Wave 1 | G24: 0
A25: Boating | B25: BTNG 12 | C25: Behm Canal-Ketchikan | D25: 29 | E25: 1 | F25: Wave 1 | G25: 0 | I25: 55.93694 | J25: -131.18833
A26: Boating | B26: BTNG 122 | C26: Matanuska Lake-Palmer | D26: 9 | E26: 4 | F26: Waves 1 and 2 | G26: 1 | H26: 0 | I26: 61.55363083 | J26: -149.2265472
A27: Boating | B27: BTNG 123 | C27: Matanuska River-Chickaloon | D27: 13 | E27: 8 | F27: Waves 1 and 2 | G27: 1 | H27: 0 | I27: 61.78147125 | J27: -148.4645538
A28: Boating | B28: BTNG 124 | C28: Matanuska River-Palmer | D28: 4 | E28: 3 | F28: Waves 1 and 2
A29: Boating | B29: BTNG 125 | C29: Meadow Lakes-Wasilla | D29: 32 | E29: 5 | F29: Waves 1 and 2 | G29: 1 | H29: 0 | I29: 61.59548569 | J29: -149.631134
A30: Boating | B30: BTNG 127 | C30: Mirror Lake-Chugiak | D30: 55 | E30: 18 | F30: Waves 1 and 2 | G30: 1 | H30: 0 | I30: 61.42802048 | J30: -149.4168854
A31: Boating | B31: BTNG 128 | C31: Montana Creek-Yoder Rd | D31: 1 | E31: 1 | F31: Wave 1 | G31: 1 | H31: 1 | I31: 62.17473984 | J31: -149.9707336
A32: Boating | B32: BTNG 129 | C32: Moose Creek-Palmer | D32: 1 | E32: 1 | F32: Wave 1 | G32: 0
A33: Boating | B33: BTNG 13 | C33: Benka Lake-Talkeetna | D33: 35 | E33: 4 | F33: Waves 1 and 2 | G33: 1 | H33: 0 | I33: 62.18370819 | J33: -150.0114136
A34: Boating | B34: BTNG 131 | C34: Nancy Lakes | D34: 357 | E34: 36 | F34: Waves 1 and 2 | G34: 1 | H34: 0 | I34: 61.70269012 | J34: -150.0074615
A35: Boating | B35: BTNG 132 | C35: Nelchina River-Nelchina | D35: 3 | E35: 1 | F35: Wave 1 | G35: 0
A36: Boating | B36: BTNG 133 | C36: Nenana River-Denali Area | D36: 51 | E36: 16 | F36: Waves 1 and 2 | G36: 1 | H36: 0 | I36: 63.65668869 | J36: -148.8312836
A37: Boating | B37: BTNG 134 | C37: Nenana River-Nenana | D37: 2 | E37: 1 | F37: Wave 1 | G37: 1 | H37: 0 | I37: 64.55673981 | J37: -149.1132355
A38: Boating | B38: BTNG 135 | C38: North Pole Lakes-Unspecified | D38: 8 | E38: 1 | F38: Wave 1 | G38: 0
A39: Boating | B39: BTNG 136 | C39: North Sound-Norton Sound | D39: 5 | E39: 1 | F39: Wave 1 | G39: 0
A40: Boating | B40: BTNG 137 | C40: Otto Lake-Healy | D40: 1 | E40: 1 | F40: Wave 1 | G40: 0
A41: Boating | B41: BTNG 138 | C41: Partor Lake-Houston | D41: 43 | E41: 5 | F41: Wave 1 | G41: 1 | H41: 0 | I41: 61.62405014 | J41: -149.7318268
A42: Boating | B42: BTNG 139 | C42: Paxon Lake-Glennallen | D42: 17 | E42: 8 | F42: Waves 1 and 2 | G42: 1 | I42: 62.90177 | J42: -145.53368
A43: Boating | B43: BTNG 140 | C43: Porcupine River-Fort Yukon | D43: 15 | E43: 1 | F43: Wave 1 | G43: 0 | I43: 66.57638 | J43: -145.31777
A44: Boating | B44: BTNG 141 | C44: Portage Creek-Portage Valley | D44: 13 | E44: 5 | F44: Waves 1 and 2 | G44: 1 | H44: 0 | I44: 60.78516006 | J44: -148.8414764
A45: Boating | B45: BTNG 142 | C45: Prince William Sound-Cordova | D45: 27 | E45: 5 | F45: Waves 1 and 2 | G45: 1 | H45: 0 | I45: 60.54362869 | J45: -145.7621155
A46: Boating | B46: BTNG 143 | C46: Prince William Sound-Seward | D46: 210 | E46: 33 | F46: Waves 1 and 2 | G46: 1 | I46: 60.11749 | J46: -149.42225
A47: Boating | B47: BTNG 144 | C47: Prince William Sound-Valdez | D47: 381 | E47: 48 | F47: Waves 1 and 2 | G47: 1 | H47: 0 | I47: 61.12736893 | J47: -146.3387756
A48: Boating | B48: BTNG 145 | C48: Prince William Sound-Whittier | D48: 536 | E48: 105 | F48: Waves 1 and 2 | G48: 1 | H48: 0 | I48: 60.77698898 | J48: -148.6894836
A49: Boating | B49: BTNG 146 | C49: Quartz Lake-Richardson Highway | D49: 56 | E49: 9 | F49: Waves 1 and 2 | G49: 1 | H49: 0 | I49: 64.19901276 | J49: -145.8272858
A50: Boating | B50: BTNG 149 | C50: Resurrection Bay-Seward | D50: 276 | E50: 75 | F50: Waves 1 and 2 | G50: 1 | H50: 0 | I50: 60.11600113 | J50: -149.4394379
A51: Boating | B51: BTNG 15 | C51: Big Lake-Big Lake | D51: 566 | E51: 72 | F51: Waves 1 and 2 | G51: 1 | H51: 0 | I51: 61.54774094 | J51: -149.8548737
A52: Boating | B52: BTNG 150 | C52: Rocky Lake-Big Lake | D52: 107 | E52: 13 | F52: Waves 1 and 2 | G52: 1 | H52: 0 | I52: 61.57728577 | J52: -149.9222717
A53: Boating | B53: BTNG 151 | C53: Ryan Lake-Mile 149 Glenn Hwy | D53: 6 | E53: 1 | F53: Wave 1 | G53: 0
A54: Boating | B54: BTNG 152 | C54: Salcha River-Salcha Rec Area | D54: 61 | E54: 11 | F54: Waves 1 and 2 | G54: 1 | H54: 0 | I54: 64.46977997 | J54: -146.93013
A55: Boating | B55: BTNG 154 | C55: Ship Creek-Anchorage | D55: 1 | E55: 1 | F55: Wave 1 | G55: 1 | H55: 0 | I55: 61.22344971 | J55: -149.8889771
A56: Boating | B56: BTNG 155 | C56: Sitka | D56: 4 | E56: 1 | F56: Wave 1 | G56: 0
A57: Boating | B57: BTNG 156 | C57: Six Mile Creek-Hope Turnout | D57: 19 | E57: 10 | F57: Waves 1 and 2 | G57: 1 | H57: 0 | I57: 60.89385986 | J57: -149.4263306
A58: Boating | B58: BTNG 157 | C58: Skilak Lake | D58: 60 | E58: 7 | F58: Waves 1 and 2 | G58: 1 | H58: 0 | I58: 60.4381485 | J58: -150.3214874
A59: Boating | B59: BTNG 158 | C59: Skwentna River-Deshka Landing | D59: 76 | E59: 1 | F59: Wave 1 | G59: 1 | H59: 0 | I59: 61.46595001 | J59: -152.7732086
A60: Boating | B60: BTNG 159 | C60: Slaw Creek-Private | D60: 1 | E60: 1 | F60: Wave 1 | G60: 0
A61: Boating | B61: BTNG 16 | C61: Birch Lake-Birch Lake | D61: 39 | E61: 10 | F61: Waves 1 and 2 | G61: 1 | H61: 0 | I61: 64.31520081 | J61: -146.6460724
A62: Boating | B62: BTNG 160 | C62: Snow River-Kenai Peninsula | D62: 1 | E62: 1 | F62: Wave 1 | G62: 0
A63: Boating | B63: BTNG 161 | C63: Summitt Lake-Kenai Peninsula | D63: 4 | E63: 2 | F63: Wave 2
A64: Boating | B64: BTNG 162 | C64: Susitna River-Deshka Landing | D64: 42 | E64: 6 | F64: Waves 1 and 2 | G64: 1 | H64: 1 | I64: 61.72145081 | J64: -150.2047119
A65: Boating | B65: BTNG 163 | C65: Susitna River-Susitna Landing | D65: 12 | E65: 2 | F65: Waves 1 and 2 | G65: 1 | H65: 1 | I65: 61.91233063 | J65: -150.0996094
A66: Boating | B66: BTNG 165 | C66: Swan Lake System-Sterling | D66: 4 | E66: 1 | F66: Wave 1 | G66: 0
A67: Boating | B67: BTNG 167 | C67: Talachulitna-Judd Lake | D67: 8 | E67: 1 | F67: Wave 1 | G67: 0
A68: Boating | B68: BTNG 168 | C68: Talkeetna Area Lakes | D68: 3 | E68: 1 | F68: Wave 1 | G68: 0
A69: Boating | B69: BTNG 169 | C69: Talkeetna River-Talkeetna River | D69: 53 | E69: 12 | F69: Waves 1 and 2 | G69: 1 | H69: 1 | I69: 62.32741928 | J69: -150.1120453
A70: Boating | B70: BTNG 17 | C70: Black River-Fort Yukon | D70: 3 | E70: 1 | F70: Wave 1 | G70: 0
A71: Boating | B71: BTNG 170 | C71: Tanana River-Chena | D71: 30 | E71: 5 | F71: Waves 1 and 2 | G71: 1 | I71: 64.79241 | J71: -147.95657
A72: Boating | B72: BTNG 171 | C72: Tanana River-Delta | D72: 12 | E72: 3 | F72: Waves 1 and 2 | G72: 1 | H72: 0 | I72: 64.15641785 | J72: -145.8491974
A73: Boating | B73: BTNG 172 | C73: Tanana River-Fairbanks | D73: 14 | E73: 6 | F73: Waves 1 and 2 | G73: 1 | H73: 0 | I73: 63.76187134 | J73: -144.6920929
A74: Boating | B74: BTNG 173 | C74: Tangle Lakes- Denali Highway | D74: 56 | E74: 16 | F74: Waves 1 and 2 | G74: 1 | H74: 0 | I74: 63.0446701 | J74: -146.0267944
A75: Boating | B75: BTNG 174 | C75: Teklanika River-Nenana | D75: 29 | E75: 4 | F75: Waves 1 and 2 | G75: 1 | H75: 0 | I75: 64.4671402 | J75: -149.3534393
A76: Boating | B76: BTNG 175 | C76: Trail Lakes-Moose Pass | D76: 12 | E76: 3 | F76: Waves 1 and 2 | G76: 1 | H76: 0 | I76: 60.48828125 | J76: -149.3693848
A77: Boating | B77: BTNG 176 | C77: Turnagin Arm-Seward Hwy | D77: 35 | E77: 1 | F77: Wave 1 | G77: 1 | H77: 0 | I77: 60.97315979 | J77: -149.4721069
A78: Boating | B78: BTNG 177 | C78: Unalakleet River-Unalakleet | D78: 5 | E78: 1 | F78: Wave 1 | G78: 0
A79: Boating | B79: BTNG 179 | C79: Walby Lake-Palmer | D79: 38 | E79: 9 | F79: Waves 1 and 2 | G79: 1 | H79: 0 | I79: 61.6188736 | J79: -149.21492
A80: Boating | B80: BTNG 18 | C80: Bontenintata-Campground | D80: 5 | E80: 1 | F80: Wave 1 | G80: 0
A81: Boating | B81: BTNG 180 | C81: Wasilla Lake-Wasilla | D81: 376 | E81: 52 | F81: Waves 1 and 2 | G81: 1 | H81: 0 | I81: 61.59938812 | J81: -149.2958832
A82: Boating | B82: BTNG 181 | C82: Westchester-Anchorage | D82: 20 | E82: 7 | F82: Waves 1 and 2 | G82: 1 | H82: 0 | I82: 61.20748901 | J82: -149.9188538
A83: Boating | B83: BTNG 182 | C83: Willow Creek-Willow | D83: 27 | E83: 6 | F83: Waves 1 and 2 | G83: 1 | H83: 1 | I83: 61.7756691 | J83: -150.1622772
A84: Boating | B84: BTNG 183 | C84: Willow Lake-Willow | D84: 32 | E84: 2 | F84: Wave 1 | G84: 1 | H84: 0 | I84: 61.74467087 | J84: -150.0534668
A85: Boating | B85: BTNG 185 | C85: Wolverine Lake-Chickaloon | D85: 1 | E85: 1 | F85: Wave 1 | G85: 0
A86: Boating | B86: BTNG 186 | C86: Yentna River-Deshka Landing | D86: 30 | E86: 5 | F86: Waves 1 and 2 | G86: 1 | H86: 1 | I86: 61.90602875 | J86: -150.918045
A87: Boating | B87: BTNG 187 | C87: Yukon River-Dalton | D87: 60 | E87: 1 | F87: Wave 1 | G87: 1 | H87: 0 | I87: 65.87850952 | J87: -149.7182465
A88: Boating | B88: BTNG 188 | C88: Yukon River-Dawson | D88: 15 | E88: 2 | F88: Waves 1 and 2 | G88: 0
A89: Boating | B89: BTNG 189 | C89: Yukon River-Fort Yukon | D89: 12 | E89: 1 | F89: Wave 1 | G89: 0
A90: Boating | B90: BTNG 190 | C90: Yukon River-Galena | D90: 1 | E90: 1 | F90: Wave 1 | G90: 0
A91: Boating | B91: BTNG 2 | C91: Anchaiatie | D91: 1 | E91: 1 | F91: Wave 1 | G91: 0
A92: Boating | B92: BTNG 20 | C92: Byers Lake-Boat Launch Campground | D92: 43 | E92: 13 | F92: Waves 1 and 2 | G92: 1 | H92: 0 | I92: 62.74303055 | J92: -150.1273956
A93: Boating | B93: BTNG 200 | C93: 3 Rivers (Talkeetna/Susitna/Chultina Rivers)-Talkeetna | D93: 2 | E93: 2 | F93: Wave 2
A94: Boating | B94: BTNG 201 | C94: 40 mile River-40 mile crossing | D94: 4 | E94: 1 | F94: Wave 2
A95: Boating | B95: BTNG 202 | C95: 6 mile lake-JBER | D95: 1 | E95: 1 | F95: Wave 2
A96: Boating | B96: BTNG 203 | C96: Alaqanek Sloosh-Boat Launch | D96: 1 | E96: 1 | F96: Wave 2
A97: Boating | B97: BTNG 204 | C97: Alexander Creek-Anchorage | D97: 5 | E97: 1 | F97: Wave 2
A98: Boating | B98: BTNG 205 | C98: Amber Lake-Amber Lake Boat Launch | D98: 47 | E98: 3 | F98: Wave 2 | G98: 1 | I98: 62.17651 | J98: -150.52218
A99: Boating | B99: BTNG 206 | C99: aniak river-aniak,ak | D99: 2 | E99: 1 | F99: Wave 2
A100: Boating | B100: BTNG 207 | C100: Anvik River-Anvik | D100: 18 | E100: 1 | F100: Wave 2 | G100: 1 | I100: 62.65567 | J100: -160.20639
A101: Boating | B101: BTNG 208 | C101: Bathing Beauty-Richardson Hwy | D101: 5 | E101: 2 | F101: Wave 2
A102: Boating | B102: BTNG 209 | C102: Bear Lake-private property | D102: 1 | E102: 1 | F102: Wave 2
A103: Boating | B103: BTNG 21 | C103: Campbell Creek-Anchorage | D103: 19 | E103: 6 | F103: Wave 1 | G103: 1 | H103: 0 | I103: 61.10176849 | J103: -149.6617889
A104: Boating | B104: BTNG 210 | C104: Beaver Creek-Nome Creek, off US Creek Rd, White Mtns Rec Area | D104: 2 | E104: 1 | F104: Wave 2
A105: Boating | B105: BTNG 211 | C105: Beaver Pond-Richardson Hwy | D105: 2 | E105: 1 | F105: Wave 2
A106: Boating | B106: BTNG 212 | C106: Bell Lake-Parks Hwy mile 127 | D106: 4 | E106: 1 | F106: Wave 2
A107: Boating | B107: BTNG 213 | C107: Bering Sea-Akutan | D107: 1 | E107: 1 | F107: Wave 2
A108: Boating | B108: BTNG 214 | C108: Birch Creek-Circle | D108: 7 | E108: 1 | F108: Wave 2
A109: Boating | B109: BTNG 215 | C109: Birch Creek-Talkeetna spur road to Susitna river | D109: 2 | E109: 1 | F109: Wave 2
A110: Boating | B110: BTNG 216 | C110: Bird Creek-Bird Creek | D110: 2 | E110: 1 | F110: Wave 2
A111: Boating | B111: BTNG 217 | C111: blair lake | D111: 1 | E111: 1 | F111: Wave 2
A112: Boating | B112: BTNG 218 | C112: Bolio Lake-Ft. Greely | D112: 2 | E112: 1 | F112: Wave 2
A113: Boating | B113: BTNG 219 | C113: Bonnie Lake-Launch | D113: 15 | E113: 1 | F113: Wave 2 | G113: 1 | I113: 61.81171 | J113: -148.29655
A114: Boating | B114: BTNG 220 | C114: Campbell Lake-Private Property | D114: 3 | E114: 1 | F114: Wave 2
A115: Boating | B115: BTNG 221 | C115: Canning River-Headwaters airstrip | D115: 2 | E115: 1 | F115: Wave 2
A116: Boating | B116: BTNG 222 | C116: Canyon Creek-Seward Hwy | D116: 4 | E116: 1 | F116: Wave 2
A117: Boating | B117: BTNG 223 | C117: Chandalar Lake-North Fork Chandalar River | D117: 9 | E117: 1 | F117: Wave 2
A118: Boating | B118: BTNG 224 | C118: Chelatna Lake-Float Plane | D118: 5 | E118: 1 | F118: Wave 2
A119: Boating | B119: BTNG 225 | C119: Chena River-Chena Wayside | D119: 4 | E119: 1 | F119: Wave 2
A120: Boating | B120: BTNG 226 | C120: Chena River-Flat Creek launch | D120: 1 | E120: 1 | F120: Wave 2
A121: Boating | B121: BTNG 227 | C121: Chena River-Graehl Landing Fairbanks | D121: 35 | E121: 6 | F121: Wave 2 | G121: 1 | I121: 64.84575 | J121: -147.70593
A122: Boating | B122: BTNG 228 | C122: chena river-mile 28 Chena Hot Springs Road | D122: 3 | E122: 1 | F122: Wave 2
A123: Boating | B123: BTNG 229 | C123: Chena River-Near Hot Springs Drift (Moose Hunt) | D123: 5 | E123: 1 | F123: Wave 2
A124: Boating | B124: BTNG 23 | C124: Canoe Trails-Tanana Lake Trailhead | D124: 1 | E124: 1 | F124: Wave 1 | G124: 0
A125: Boating | B125: BTNG 230 | C125: Chena River-Peger Road | D125: 4 | E125: 2 | F125: Wave 2
A126: Boating | B126: BTNG 231 | C126: Chena River-Pikes Landing, Fairbanks | D126: 41 | E126: 5 | F126: Wave 2 | G126: 1 | I126: 64.83012 | J126: -147.84938
A127: Boating | B127: BTNG 232 | C127: Chena River-Pioneer Park Boat Launch | D127: 4 | E127: 2 | F127: Wave 2
A128: Boating | B128: BTNG 233 | C128: Chena River-Pump House put in | D128: 5 | E128: 1 | F128: Wave 2
A129: Boating | B129: BTNG 234 | C129: Chena River-Small Tracts Launch | D129: 2 | E129: 1 | F129: Wave 2
A130: Boating | B130: BTNG 235 | C130: Chena River-Unspecified | D130: 17 | E130: 5 | F130: Wave 2 | G130: 1 | I130: 64.55647 | J130: -149.11399
A131: Boating | B131: BTNG 236 | C131: Chena Slough-Mission Road Crossing | D131: 2 | E131: 1 | F131: Wave 2
A132: Boating | B132: BTNG 237 | C132: Chilkat River-Haines/Klukwan | D132: 20 | E132: 1 | F132: Wave 2 | G132: 1 | I132: 59.28217 | J132: -135.46073
A133: Boating | B133: BTNG 238 | C133: Christensen Lake-Talkeetna | D133: 13 | E133: 3 | F133: Wave 2
A134: Boating | B134: BTNG 239 | C134: Chulitna River,East Fork-Parks Hwy Bridge | D134: 1 | E134: 1 | F134: Wave 2
A135: Boating | B135: BTNG 24 | C135: Captain Cook Recreation Site | D135: 3 | E135: 1 | F135: Wave 1 | G135: 0
A136: Boating | B136: BTNG 240 | C136: Chulitna River-Denali | D136: 1 | E136: 1 | F136: Wave 2
A137: Boating | B137: BTNG 241 | C137: Chulitna River-Float Plane out of Talkeetna | D137: 3 | E137: 1 | F137: Wave 2
A138: Boating | B138: BTNG 242 | C138: Clearwater Lake-Delta Junction | D138: 15 | E138: 6 | F138: Wave 2 | G138: 1 | I138: 64.08348 | J138: -145.60036
A139: Boating | B139: BTNG 243 | C139: Clearwater River-Clearwater Campground | D139: 14 | E139: 4 | F139: Wave 2
A140: Boating | B140: BTNG 244 | C140: Colorado Lake-Broad pass | D140: 7 | E140: 1 | F140: Wave 2
A141: Boating | B141: BTNG 245 | C141: Cook Inlet-Anchorage | D141: 5 | E141: 1 | F141: Wave 2
A142: Boating | B142: BTNG 246 | C142: Cook Inlet-Tyonek | D142: 10 | E142: 1 | F142: Wave 2
A143: Boating | B143: BTNG 247 | C143: Copper lake-Slana | D143: 3 | E143: 1 | F143: Wave 2
A144: Boating | B144: BTNG 248 | C144: Copper River-Below Gulkana River bridge | D144: 1 | E144: 1 | F144: Wave 2
A145: Boating | B145: BTNG 25 | C145: Carpenters Lake-Burma Road | D145: 5 | E145: 1 | F145: Wave 1 | G145: 0
A146: Boating | B146: BTNG 250 | C146: Copper River-Chitina | D146: 17 | E146: 4 | F146: Wave 2 | G146: 1 | I146: 61.52033 | J146: -144.42219
A147: Boating | B147: BTNG 251 | C147: Copper River-Copper Center | D147: 11 | E147: 4 | F147: Wave 2
A148: Boating | B148: BTNG 252 | C148: Copper River-New Richardson Bridge | D148: 1 | E148: 1 | F148: Wave 2
A149: Boating | B149: BTNG 253 | C149: Copper River-Slana, AK | D149: 9 | E149: 1 | F149: Wave 2
A150: Boating | B150: BTNG 254 | C150: Copper River-Unspecified | D150: 3 | E150: 3 | F150: Wave 2
A151: Boating | B151: BTNG 255 | C151: Cornieleius Lake-Palmer | D151: 6 | E151: 2 | F151: Wave 2
A152: Boating | B152: BTNG 256 | C152: Cottonwood Lake-Private Property | D152: 2 | E152: 1 | F152: Wave 2
A153: Boating | B153: BTNG 257 | C153: cranberry lake near big lake-public launch | D153: 8 | E153: 1 | F153: Wave 2
A154: Boating | B154: BTNG 258 | C154: Crosswind Lake-Private property | D154: 6 | E154: 1 | F154: Wave 2
A155: Boating | B155: BTNG 259 | C155: Crosswind Lake-Tulsona Glennallen Area | D155: 4 | E155: 1 | F155: Wave 2
A156: Boating | B156: BTNG 26 | C156: Chatanika River-Chatanika | D156: 82 | E156: 10 | F156: Waves 1 and 2 | G156: 1 | H156: 0 | I156: 65.13098145 | J156: -147.490036
A157: Boating | B157: BTNG 260 | C157: Crystal Lake-private property | D157: 2 | E157: 1 | F157: Wave 2
A158: Boating | B158: BTNG 261 | C158: Deep Creek-Mouth | D158: 4 | E158: 1 | F158: Wave 2
A159: Boating | B159: BTNG 262 | C159: DeLong Lake-Anchorage | D159: 4 | E159: 2 | F159: Wave 2
A160: Boating | B160: BTNG 263 | C160: Drashner Lake-Cantwell | D160: 2 | E160: 1 | F160: Wave 2
A161: Boating | B161: BTNG 264 | C161: Dutch Harbor-Dutch Harbor | D161: 6 | E161: 1 | F161: Wave 2
A162: Boating | B162: BTNG 265 | C162: East Fork Susitna River-Valdez Creek | D162: 2 | E162: 1 | F162: Wave 2
A163: Boating | B163: BTNG 266 | C163: Eight Mile Lake-Denali Highway | D163: 1 | E163: 1 | F163: Wave 2
A164: Boating | B164: BTNG 267 | C164: Eyak River-Boat Launch | D164: 1 | E164: 1 | F164: Wave 2
A165: Boating | B165: BTNG 268 | C165: Finger Lake- Private Property | D165: 10 | E165: 1 | F165: Wave 2
A166: Boating | B166: BTNG 269 | C166: Fire Lake- Eagle River Private Residence | D166: 6 | E166: 1 | F166: Wave 2
A167: Boating | B167: BTNG 27 | C167: Chena Lakes Rec Area-North Pole | D167: 92 | E167: 18 | F167: Waves 1 and 2 | G167: 1 | H167: 0 | I167: 64.76966858 | J167: -147.2293243
A168: Boating | B168: BTNG 270 | C168: Fortymile River South Fork -S Fork boat launch off Taylor Hwy | D168: 6 | E168: 1 | F168: Wave 2
A169: Boating | B169: BTNG 271 | C169: Gakona River-Richardson Hwy, mile 154 | D169: 2 | E169: 1 | F169: Wave 2
A170: Boating | B170: BTNG 272 | C170: Good Paster River-Tanana River Boat Launch | D170: 8 | E170: 2 | F170: Wave 2
A171: Boating | B171: BTNG 273 | C171: Goodpaster River-Big Delta boat launch | D171: 10 | E171: 1 | F171: Wave 2
A172: Boating | B172: BTNG 274 | C172: Gravel Lake-Salcha | D172: 2 | E172: 1 | F172: Wave 2
A173: Boating | B173: BTNG 275 | C173: Gulf of Alaska-Sand Point | D173: 5 | E173: 1 | F173: Wave 2
A174: Boating | B174: BTNG 276 | C174: Gulkana River-Gakona | D174: 3 | E174: 2 | F174: Wave 2
A175: Boating | B175: BTNG 278 | C175: gulkana river-paxson | D175: 6 | E175: 1 | F175: Wave 2
A176: Boating | B176: BTNG 28 | C176: Chena River-Chena | D176: 37 | E176: 5 | F176: Waves 1 and 2 | G176: 1 | I176: 64.8075 | J176: -147.91511
A177: Boating | B177: BTNG 280 | C177: Gulkana River-Poplar grove, Richardson Hwy | D177: 1 | E177: 1 | F177: Wave 2
A178: Boating | B178: BTNG 281 | C178: Gulkana River-Sailor's Pit | D178: 9 | E178: 4 | F178: Wave 2
A179: Boating | B179: BTNG 282 | C179: Gulkana River-Sourdough BLM | D179: 30 | E179: 9 | F179: Wave 2 | G179: 1 | I179: 62.52128 | J179: -145.5308
A180: Boating | B180: BTNG 283 | C180: gulkana river-summit lake | D180: 9 | E180: 2 | F180: Wave 2
A181: Boating | B181: BTNG 284 | C181: Halibut Cove-Halibut Cove | D181: 2 | E181: 1 | F181: Wave 2
A182: Boating | B182: BTNG 285 | C182: Happy River-Fly-in | D182: 8 | E182: 1 | F182: Wave 2
A183: Boating | B183: BTNG 287 | C183: Hidden Lake-Cooper Landing | D183: 3 | E183: 1 | F183: Wave 2
A184: Boating | B184: BTNG 288 | C184: High Lake-Personal dock | D184: 2 | E184: 1 | F184: Wave 2
A185: Boating | B185: BTNG 289 | C185: Hulahula River-Walked from Sadlerochit River | D185: 1 | E185: 1 | F185: Wave 2
A186: Boating | B186: BTNG 29 | C186: Chena River-Fairbanks | D186: 346 | E186: 79 | F186: Waves 1 and 2 | G186: 1 | H186: 0 | I186: 64.84207916 | J186: -147.812027
A187: Boating | B187: BTNG 290 | C187: Ingram Creek-Seward Hwy | D187: 1 | E187: 1 | F187: Wave 2
A188: Boating | B188: BTNG 291 | C188: Innoko River-Shageluk | D188: 10 | E188: 1 | F188: Wave 2
A189: Boating | B189: BTNG 292 | C189: Inside Passage-Cruise Ship Vancouver | D189: 8 | E189: 1 | F189: Wave 2
A190: Boating | B190: BTNG 293 | C190: Jack River-Cantwell | D190: 7 | E190: 2 | F190: Wave 2
A191: Boating | B191: BTNG 294 | C191: Kaktovik Lagoon-crossed to Barter Island, narrowest point | D191: 1 | E191: 1 | F191: Wave 2
A192: Boating | B192: BTNG 295 | C192: Kenai Lake-Quartz Creek | D192: 1 | E192: 1 | F192: Wave 2
A193: Boating | B193: BTNG 296 | C193: Kenai River- Kenai | D193: 10 | E193: 6 | F193: Wave 2
A194: Boating | B194: BTNG 297 | C194: Kenai River-Bings Landing | D194: 17 | E194: 2 | F194: Wave 2 | G194: 1 | I194: 60.51568 | J194: -150.70101
A195: Boating | B195: BTNG 298 | C195: Kenai River-Cooper Landing Boat Launch | D195: 50 | E195: 17 | F195: Wave 2 | G195: 1 | I195: 60.49006 | J195: -149.83268
A196: Boating | B196: BTNG 299 | C196: Kenai River-Funny River | D196: 1 | E196: 1 | F196: Wave 2
A197: Boating | B197: BTNG 3 | C197: Anchorage Lakes | D197: 439 | E197: 40 | F197: Waves 1 and 2 | G197: 1 | H197: 0 | I197: 61.15227127 | J197: -149.9570923
A198: Boating | B198: BTNG 30 | C198: Chena River-Ft. Wainwright | D198: 8 | E198: 3 | F198: Waves 1 and 2
A199: Boating | B199: BTNG 300 | C199: Kenai River-Grown Point | D199: 2 | E199: 1 | F199: Wave 2
A200: Boating | B200: BTNG 301 | C200: Kenai River-Izaak Walton | D200: 2 | E200: 1 | F200: Wave 2
A201: Boating | B201: BTNG 302 | C201: Kenai River-Jims Landing | D201: 3 | E201: 1 | F201: Wave 2
A202: Boating | B202: BTNG 303 | C202: Kenai River-Lower Skilak | D202: 2 | E202: 1 | F202: Wave 2
... 1038 more rows
